Workbook

Sheet 高天井用LED器具(ｱｰﾑﾀｲﾌﾟ)
A1: 省エネ計算ツール【高天井用ＬＥＤ器具（アームタイプ）】
A2: 従来の高天井用器具と高天井用ＬＥＤ器具(アームタイプ）の省エネ試算ができます。目安としてご活用ください。
A3: 従来の高天井用器具 | G3: 高天井用ＬＥＤ器具（アームタイプ）
A4: ■従来の高天井用ランプを選んでください。↓（枠内から選択） | G4: ■おすすめの高天井用ＬＥＤ器具です。
B5: ▼ | F5: ※1 | G5: 特長 | H5: ●アーム形状でさまざまな取り付けに対応
H6: ●171.8～175.7lm/Wの高効率と軽量化を実現
H7: ●LED光源寿命 60,000時間 ※4
A8: 品 名 | C8: =IF((VLOOKUP(品名,DATA!$A$4:$AM$7,1,0))="▼","",VLOOKUP(品名,DATA!$A$4:$AM$7,1,0)) ->  | G8: 品 名 | I8: =IF((VLOOKUP(品名,DATA!$A$4:$AM$7,23,0))="","",VLOOKUP(品名,DATA!$A$4:$AM$7,23,0)) -> 
A10: 参 考 形 式 | C10: =IF(VLOOKUP(品名,DATA!$A$4:$AM$7,2,0)="","",VLOOKUP(品名,DATA!$A$4:$AM$7,2,0)) ->  | G10: 形 式 | I10: =IF(VLOOKUP(品名,DATA!$A$4:$AM$7,24,0)="","",VLOOKUP(品名,DATA!$A$4:$AM$7,24,0)) -> 
A11: 価 格 （税抜） | C11: - | G11: 価 格 （税抜） | I11: <積算見積価格>※2 | K11: <購入価格で試算>※3
H12: LED器具 | I12: =IF((VLOOKUP(品名,DATA!$A$4:$AM$7,27,0))="",0,VLOOKUP(品名,DATA!$A$4:$AM$7,27,0)) -> 0 | J12: 円 | K12: 0 | L12: 円
H13: 点灯装置 | I13: =IF((VLOOKUP(品名,DATA!$A$4:$AM$7,28,0))="",0,VLOOKUP(品名,DATA!$A$4:$AM$7,28,0)) -> 0 | J13: 円 | K13: 0 | L13: 円
H14: 合計 | I14: =IF(SUM(I12:I13)="","",SUM(I12:I13)) -> 0 | J14: 円 | K14: =SUM(K12:K13) -> 0 | L14: 円
A15: ランプ光束 ※5 | C15: =IF((VLOOKUP(品名,DATA!$A$4:$AM$7,14,0))="","",VLOOKUP(品名,DATA!$A$4:$AM$7,14,0)) ->  | D15: lm | G15: 定格光束 ※6 | I15: =IF((VLOOKUP(品名,DATA!$A$4:$AM$7,33,0))="","",VLOOKUP(品名,DATA!$A$4:$AM$7,33,0)) ->  | J15: lm
A16: 定格消費電力 ※7 | C16: =IF((VLOOKUP(品名,DATA!$A$4:$AM$7,12,0))="","",VLOOKUP(品名,DATA!$A$4:$AM$7,12,0)) ->  | D16: W | G16: 定格消費電力 ※7 | I16: =IF((VLOOKUP(品名,DATA!$A$4:$AM$7,30,0))="","",VLOOKUP(品名,DATA!$A$4:$AM$7,30,0)) ->  | J16: W
A17: 消費効率 | C17: =IF(C15="","",ROUND(C15/C16,1)) ->  | D17: lm/W | G17: 消費効率 | I17: =IF(I15="","",ROUNDDOWN(I15/I16,1)) ->  | J17: lm/W | K17: 固有エネルギー消費効率
A18: ランプ寿命 | C18: =IF((VLOOKUP(品名,DATA!$A$4:$AM$7,13,0))="","",VLOOKUP(品名,DATA!$A$4:$AM$7,13,0)) ->  | D18: 時間 | G18: ＬＥＤ光源寿命 | I18: =IF((VLOOKUP(品名,DATA!$A$4:$AM$7,32,0))="","",VLOOKUP(品名,DATA!$A$4:$AM$7,32,0)) ->  | J18: 時間 | K18: ※4
A19: 質量※8 | C19: =IF((VLOOKUP(品名,DATA!$A$4:$AM$7,19,0))="","",VLOOKUP(品名,DATA!$A$4:$AM$7,19,0)) ->  | G19: 質量 | I19: =IF((VLOOKUP(品名,DATA!$A$4:$AM$7,38,0))="","",VLOOKUP(品名,DATA!$A$4:$AM$7,38,0)) -> 
A20: 外観 | G20: 外観
A24: ■試算条件を入力ください。（枠内に入力ください） | G24: ■試算条件を入力ください。（枠内に入力ください）
A26: 使用台数 | C26: 1 | D26: 台 | G26: 使用台数 | I26: 1 | J26: 台
A28: 電力料金 ※9 | C28: 28 | D28: 円/kWh | E28: ＊任意に変更ができます。 | G28: 電力料金 ※9 | I28: =C28 -> 28 | J28: 円/kWh
A30: 1日の点灯時間 | C30: 10 | D30: 時間/日 | G30: 1日の点灯時間 | I30: =C30 -> 10 | J30: 時間/日
A32: 年間使用日数 | C32: 300 | D32: 日/年 | G32: 年間の使用日数 | I32: =C32 -> 300 | J32: 日/年
A34: 年間点灯時間※10 | C34: =C30*C32 -> 3000 | D34: 時間/年 | G34: 年間点灯時間 | I34: =I30*I32 -> 3000 | J34: 時間/年
A36: 年間消費電力 | C36: =IF(C16="",0,C16*C34*C26/1000) -> 0 | D36: kWh/年 | G36: 年間消費電力 | I36: =IF(I16="",0,I16*I26*I34/1000) -> 0 | J36: kWh/年
A39: ランニングコスト | C39: =C36*C28 -> 0 | D39: 円/年 | G39: ランニングコスト | I39: =I36*I28 -> 0 | J39: 円/年 | K39: =IF(OR(C39=0,I39=0),"-",IF(((I39-C39)/C39)<0,ROUNDDOWN((I39-C39)/C39,2),ROUNDUP((I39-C39)/C39,2))) -> - | L39: =IF(OR(K39="-",K39=0),"",IF(K39<0,"低減","アップ")) -> 
A40: (年間電力費）
E41: =IF(C14=0,"",IF(J44>0,"●設備費用なしの試算です！",IF(E14=0,"●積算見積価格の試算です！","●購入価格の試算です！"))) ->  | G41: イニシャルコスト | I41: =IF(I14=0,0,IF(K14=0,I14*I26,K14*I26)) -> 0 | J41: 円 | L41: =IF(OR(K41="-",K41=0),"",IF(K41<0,"低減","アップ")) -> 
I42: =IF(I14=0,"",IF(K14=0,"●積算見積価格の試算です！","●購入価格の試算です！")) -> 
A46: ■試算結果
A47: 【結果１】 ランニングコスト比較（年間電力費）
C48: ランニングコスト | E48: 比較
B49: 従来 | C49: =IF(C39="",0,ROUND(C39,0)) -> 0 | D49: 円/年 | E49: =IF(C49=0,"-",100%) -> -
B50: ＬＥＤ | C50: =IF(I39="",0,ROUND(I39,0)) -> 0 | D50: 円/年 | E50: =IF(OR(C49=0,C50=0),"-",IF((C50/C49)<0,ROUNDDOWN((C50/C49),2),ROUNDUP((C50/C49),2))) -> -
B51: 差額 | C51: =C50-C49 -> 0 | D51: 円/年 | E51: =IF(OR(C49=0,C51=0),"-",IF((C51/C49)<0,ROUNDDOWN((C51/C49),2),ROUNDUP((C51/C49),2))) -> -
B52: =IF(OR(C51=0,C51>0),"","●ＬＥＤなら年間 "&TEXT(-C51,"#,##0")&"円 お得です！") -> 
A53: 【結果２】 イニシャルコスト比較（設備費用）と設備償却
C54: イニシャルコスト | E54: 設備償却
B55: 従来 | C55: =IF(C41="",0,ROUND(C41,0)) -> 0 | D55: 円 | E55: =IF(C57=0,"",-C57/C51) -> 
B56: ＬＥＤ | C56: =IF(I41="",0,ROUND(I41,0)) -> 0 | D56: 円
B57: 差額 | C57: =IF(C55="",0,C56-C55) -> 0 | D57: 円 | G57: ＊設備償却=イニシャルコスト差額÷ランニングコスト差額
A58: ＊イニシャルコストの設備償却は、従来の設備費用をランニングコストの差額で割り試算しています。 試算条件によっては、
A59: 「一般社団法人日本照明工業会 ガイド111」による適正交換時期や耐用の限度を超える場合がありますが、寿命を保証するものではありません。
A61: ※1 従来の高天井用ランプを選択すると、おすすめの高天井用LED器具が表示されますが、明るさを保証するものではありません。
A62: ※2 積算見積価格は、事業者様向けの積算見積価格であり、一般消費者向けの販売価格ではありません。
A63: ※3 購入価格を入力すると購入価格での試算となります。『クリア』ボタンでリセットされます。
A64: ※4 LED光源寿命はLED単体で定められた温度設計に基づいて算出した設計寿命であり、使用環境・使用方法により寿命は異なります。 また、LEDモジュール
A65: としての寿命であり、照明器具としての寿命は他の光源を使用した場合と同様の8～10年です。 LEDモジュールのみの交換はできません。
A66: ※5 ランプ光束はランプ単体の全光束を示します。 ランプを装着した高天井器具から放出される光の量（lm：ルーメン）ではありません。
A67: ※6 定格光束はLEDランプから放出される光の量（lm：ルーメン）を示します。 明るさ（照度 lx：ルクス）の比較は、照明計算によります。
A68: ※7 定格消費電力、平均消費電力は入力電圧200V時の値です。
A69: ※8 従来器具の質量は当社同等品の質量としています。
A70: ※9 年間電力費は電力料金単価28円/kWh（税抜）[一般社団法人日本照明工業会 ガイドA139-2023]を初期値として計算しています。
A71: ※10 年間点灯時間は3,000時間を初期値としています。[一般社団法人日本照明工業会 ガイドA139-2023「事務所・工場（一般）・店舗」] | N71: ※9 年間ランプ交換数は年間点灯時間×総使用本数/（ランプ定格寿命×0.7）で試算しています（一般社団法人日本照明工業会 技術資料114-1996による）。 | O71: ※9 年間ランプ交換数は年間点灯時間×総使用本数/（ランプ定格寿命×0.7）で試算しています（一般社団法人日本照明工業会 技術資料114-1996による）。 | P71: ※9 年間ランプ交換数は年間点灯時間×総使用本数/（ランプ定格寿命×0.7）で試算しています（一般社団法人日本照明工業会 技術資料114-1996による）。 | Q71: ※9 年間ランプ交換数は年間点灯時間×総使用本数/（ランプ定格寿命×0.7）で試算しています（一般社団法人日本照明工業会 技術資料114-1996による）。 | R71: ※9 年間ランプ交換数は年間点灯時間×総使用本数/（ランプ定格寿命×0.7）で試算しています（一般社団法人日本照明工業会 技術資料114-1996による）。 | S71: ※9 年間ランプ交換数は年間点灯時間×総使用本数/（ランプ定格寿命×0.7）で試算しています（一般社団法人日本照明工業会 技術資料114-1996による）。 | T71: ※9 年間ランプ交換数は年間点灯時間×総使用本数/（ランプ定格寿命×0.7）で試算しています（一般社団法人日本照明工業会 技術資料114-1996による）。 | U71: ※9 年間ランプ交換数は年間点灯時間×総使用本数/（ランプ定格寿命×0.7）で試算しています（一般社団法人日本照明工業会 技術資料114-1996による）。 | V71: ※9 年間ランプ交換数は年間点灯時間×総使用本数/（ランプ定格寿命×0.7）で試算しています（一般社団法人日本照明工業会 技術資料114-1996による）。 | W71: ※9 年間ランプ交換数は年間点灯時間×総使用本数/（ランプ定格寿命×0.7）で試算しています（一般社団法人日本照明工業会 技術資料114-1996による）。 | X71: ※9 年間ランプ交換数は年間点灯時間×総使用本数/（ランプ定格寿命×0.7）で試算しています（一般社団法人日本照明工業会 技術資料114-1996による）。 | Y71: ※9 年間ランプ交換数は年間点灯時間×総使用本数/（ランプ定格寿命×0.7）で試算しています（一般社団法人日本照明工業会 技術資料114-1996による）。 | Z71: ※9 年間ランプ交換数は年間点灯時間×総使用本数/（ランプ定格寿命×0.7）で試算しています（一般社団法人日本照明工業会 技術資料114-1996による）。 | AA71: ※9 年間ランプ交換数は年間点灯時間×総使用本数/（ランプ定格寿命×0.7）で試算しています（一般社団法人日本照明工業会 技術資料114-1996による）。 | AB71: ※9 年間ランプ交換数は年間点灯時間×総使用本数/（ランプ定格寿命×0.7）で試算しています（一般社団法人日本照明工業会 技術資料114-1996による）。 | AC71: ※9 年間ランプ交換数は年間点灯時間×総使用本数/（ランプ定格寿命×0.7）で試算しています（一般社団法人日本照明工業会 技術資料114-1996による）。 | AD71: ※9 年間ランプ交換数は年間点灯時間×総使用本数/（ランプ定格寿命×0.7）で試算しています（一般社団法人日本照明工業会 技術資料114-1996による）。 | AE71: ※9 年間ランプ交換数は年間点灯時間×総使用本数/（ランプ定格寿命×0.7）で試算しています（一般社団法人日本照明工業会 技術資料114-1996による）。 | AF71: ※9 年間ランプ交換数は年間点灯時間×総使用本数/（ランプ定格寿命×0.7）で試算しています（一般社団法人日本照明工業会 技術資料114-1996による）。 | AG71: ※9 年間ランプ交換数は年間点灯時間×総使用本数/（ランプ定格寿命×0.7）で試算しています（一般社団法人日本照明工業会 技術資料114-1996による）。 | AH71: ※9 年間ランプ交換数は年間点灯時間×総使用本数/（ランプ定格寿命×0.7）で試算しています（一般社団法人日本照明工業会 技術資料114-1996による）。 | AI71: ※9 年間ランプ交換数は年間点灯時間×総使用本数/（ランプ定格寿命×0.7）で試算しています（一般社団法人日本照明工業会 技術資料114-1996による）。 | AJ71: ※9 年間ランプ交換数は年間点灯時間×総使用本数/（ランプ定格寿命×0.7）で試算しています（一般社団法人日本照明工業会 技術資料114-1996による）。 | AK71: ※9 年間ランプ交換数は年間点灯時間×総使用本数/（ランプ定格寿命×0.7）で試算しています（一般社団法人日本照明工業会 技術資料114-1996による）。 | AL71: ※9 年間ランプ交換数は年間点灯時間×総使用本数/（ランプ定格寿命×0.7）で試算しています（一般社団法人日本照明工業会 技術資料114-1996による）。 | AM71: ※9 年間ランプ交換数は年間点灯時間×総使用本数/（ランプ定格寿命×0.7）で試算しています（一般社団法人日本照明工業会 技術資料114-1996による）。 | AN71: ※9 年間ランプ交換数は年間点灯時間×総使用本数/（ランプ定格寿命×0.7）で試算しています（一般社団法人日本照明工業会 技術資料114-1996による）。 | AO71: ※9 年間ランプ交換数は年間点灯時間×総使用本数/（ランプ定格寿命×0.7）で試算しています（一般社団法人日本照明工業会 技術資料114-1996による）。 | AP71: ※9 年間ランプ交換数は年間点灯時間×総使用本数/（ランプ定格寿命×0.7）で試算しています（一般社団法人日本照明工業会 技術資料114-1996による）。 | AQ71: ※9 年間ランプ交換数は年間点灯時間×総使用本数/（ランプ定格寿命×0.7）で試算しています（一般社団法人日本照明工業会 技術資料114-1996による）。 | AR71: ※9 年間ランプ交換数は年間点灯時間×総使用本数/（ランプ定格寿命×0.7）で試算しています（一般社団法人日本照明工業会 技術資料114-1996による）。 | AS71: ※9 年間ランプ交換数は年間点灯時間×総使用本数/（ランプ定格寿命×0.7）で試算しています（一般社団法人日本照明工業会 技術資料114-1996による）。 | AT71: ※9 年間ランプ交換数は年間点灯時間×総使用本数/（ランプ定格寿命×0.7）で試算しています（一般社団法人日本照明工業会 技術資料114-1996による）。 | AU71: ※9 年間ランプ交換数は年間点灯時間×総使用本数/（ランプ定格寿命×0.7）で試算しています（一般社団法人日本照明工業会 技術資料114-1996による）。 | AV71: ※9 年間ランプ交換数は年間点灯時間×総使用本数/（ランプ定格寿命×0.7）で試算しています（一般社団法人日本照明工業会 技術資料114-1996による）。 | AW71: ※9 年間ランプ交換数は年間点灯時間×総使用本数/（ランプ定格寿命×0.7）で試算しています（一般社団法人日本照明工業会 技術資料114-1996による）。 | AX71: ※9 年間ランプ交換数は年間点灯時間×総使用本数/（ランプ定格寿命×0.7）で試算しています（一般社団法人日本照明工業会 技術資料114-1996による）。 | AY71: ※9 年間ランプ交換数は年間点灯時間×総使用本数/（ランプ定格寿命×0.7）で試算しています（一般社団法人日本照明工業会 技術資料114-1996による）。 | AZ71: ※9 年間ランプ交換数は年間点灯時間×総使用本数/（ランプ定格寿命×0.7）で試算しています（一般社団法人日本照明工業会 技術資料114-1996による）。 | BA71: ※9 年間ランプ交換数は年間点灯時間×総使用本数/（ランプ定格寿命×0.7）で試算しています（一般社団法人日本照明工業会 技術資料114-1996による）。 | BB71: ※9 年間ランプ交換数は年間点灯時間×総使用本数/（ランプ定格寿命×0.7）で試算しています（一般社団法人日本照明工業会 技術資料114-1996による）。 | BC71: ※9 年間ランプ交換数は年間点灯時間×総使用本数/（ランプ定格寿命×0.7）で試算しています（一般社団法人日本照明工業会 技術資料114-1996による）。 | BD71: ※9 年間ランプ交換数は年間点灯時間×総使用本数/（ランプ定格寿命×0.7）で試算しています（一般社団法人日本照明工業会 技術資料114-1996による）。 | BE71: ※9 年間ランプ交換数は年間点灯時間×総使用本数/（ランプ定格寿命×0.7）で試算しています（一般社団法人日本照明工業会 技術資料114-1996による）。 | BF71: ※9 年間ランプ交換数は年間点灯時間×総使用本数/（ランプ定格寿命×0.7）で試算しています（一般社団法人日本照明工業会 技術資料114-1996による）。 | BG71: ※9 年間ランプ交換数は年間点灯時間×総使用本数/（ランプ定格寿命×0.7）で試算しています（一般社団法人日本照明工業会 技術資料114-1996による）。 | BH71: ※9 年間ランプ交換数は年間点灯時間×総使用本数/（ランプ定格寿命×0.7）で試算しています（一般社団法人日本照明工業会 技術資料114-1996による）。 | BI71: ※9 年間ランプ交換数は年間点灯時間×総使用本数/（ランプ定格寿命×0.7）で試算しています（一般社団法人日本照明工業会 技術資料114-1996による）。 | BJ71: ※9 年間ランプ交換数は年間点灯時間×総使用本数/（ランプ定格寿命×0.7）で試算しています（一般社団法人日本照明工業会 技術資料114-1996による）。 | BK71: ※9 年間ランプ交換数は年間点灯時間×総使用本数/（ランプ定格寿命×0.7）で試算しています（一般社団法人日本照明工業会 技術資料114-1996による）。 | BL71: ※9 年間ランプ交換数は年間点灯時間×総使用本数/（ランプ定格寿命×0.7）で試算しています（一般社団法人日本照明工業会 技術資料114-1996による）。 | BM71: ※9 年間ランプ交換数は年間点灯時間×総使用本数/（ランプ定格寿命×0.7）で試算しています（一般社団法人日本照明工業会 技術資料114-1996による）。 | BN71: ※9 年間ランプ交換数は年間点灯時間×総使用本数/（ランプ定格寿命×0.7）で試算しています（一般社団法人日本照明工業会 技術資料114-1996による）。 | BO71: ※9 年間ランプ交換数は年間点灯時間×総使用本数/（ランプ定格寿命×0.7）で試算しています（一般社団法人日本照明工業会 技術資料114-1996による）。 | BP71: ※9 年間ランプ交換数は年間点灯時間×総使用本数/（ランプ定格寿命×0.7）で試算しています（一般社団法人日本照明工業会 技術資料114-1996による）。 | BQ71: ※9 年間ランプ交換数は年間点灯時間×総使用本数/（ランプ定格寿命×0.7）で試算しています（一般社団法人日本照明工業会 技術資料114-1996による）。 | BR71: ※9 年間ランプ交換数は年間点灯時間×総使用本数/（ランプ定格寿命×0.7）で試算しています（一般社団法人日本照明工業会 技術資料114-1996による）。 | BS71: ※9 年間ランプ交換数は年間点灯時間×総使用本数/（ランプ定格寿命×0.7）で試算しています（一般社団法人日本照明工業会 技術資料114-1996による）。 | BT71: ※9 年間ランプ交換数は年間点灯時間×総使用本数/（ランプ定格寿命×0.7）で試算しています（一般社団法人日本照明工業会 技術資料114-1996による）。 | BU71: ※9 年間ランプ交換数は年間点灯時間×総使用本数/（ランプ定格寿命×0.7）で試算しています（一般社団法人日本照明工業会 技術資料114-1996による）。 | BV71: ※9 年間ランプ交換数は年間点灯時間×総使用本数/（ランプ定格寿命×0.7）で試算しています（一般社団法人日本照明工業会 技術資料114-1996による）。 | BW71: ※9 年間ランプ交換数は年間点灯時間×総使用本数/（ランプ定格寿命×0.7）で試算しています（一般社団法人日本照明工業会 技術資料114-1996による）。 | BX71: ※9 年間ランプ交換数は年間点灯時間×総使用本数/（ランプ定格寿命×0.7）で試算しています（一般社団法人日本照明工業会 技術資料114-1996による）。 | BY71: ※9 年間ランプ交換数は年間点灯時間×総使用本数/（ランプ定格寿命×0.7）で試算しています（一般社団法人日本照明工業会 技術資料114-1996による）。 | BZ71: ※9 年間ランプ交換数は年間点灯時間×総使用本数/（ランプ定格寿命×0.7）で試算しています（一般社団法人日本照明工業会 技術資料114-1996による）。 | CA71: ※9 年間ランプ交換数は年間点灯時間×総使用本数/（ランプ定格寿命×0.7）で試算しています（一般社団法人日本照明工業会 技術資料114-1996による）。 | CB71: ※9 年間ランプ交換数は年間点灯時間×総使用本数/（ランプ定格寿命×0.7）で試算しています（一般社団法人日本照明工業会 技術資料114-1996による）。 | CC71: ※9 年間ランプ交換数は年間点灯時間×総使用本数/（ランプ定格寿命×0.7）で試算しています（一般社団法人日本照明工業会 技術資料114-1996による）。 | CD71: ※9 年間ランプ交換数は年間点灯時間×総使用本数/（ランプ定格寿命×0.7）で試算しています（一般社団法人日本照明工業会 技術資料114-1996による）。 | CE71: ※9 年間ランプ交換数は年間点灯時間×総使用本数/（ランプ定格寿命×0.7）で試算しています（一般社団法人日本照明工業会 技術資料114-1996による）。 | CF71: ※9 年間ランプ交換数は年間点灯時間×総使用本数/（ランプ定格寿命×0.7）で試算しています（一般社団法人日本照明工業会 技術資料114-1996による）。 | CG71: ※9 年間ランプ交換数は年間点灯時間×総使用本数/（ランプ定格寿命×0.7）で試算しています（一般社団法人日本照明工業会 技術資料114-1996による）。 | CH71: ※9 年間ランプ交換数は年間点灯時間×総使用本数/（ランプ定格寿命×0.7）で試算しています（一般社団法人日本照明工業会 技術資料114-1996による）。 | CI71: ※9 年間ランプ交換数は年間点灯時間×総使用本数/（ランプ定格寿命×0.7）で試算しています（一般社団法人日本照明工業会 技術資料114-1996による）。 | CJ71: ※9 年間ランプ交換数は年間点灯時間×総使用本数/（ランプ定格寿命×0.7）で試算しています（一般社団法人日本照明工業会 技術資料114-1996による）。 | CK71: ※9 年間ランプ交換数は年間点灯時間×総使用本数/（ランプ定格寿命×0.7）で試算しています（一般社団法人日本照明工業会 技術資料114-1996による）。 | CL71: ※9 年間ランプ交換数は年間点灯時間×総使用本数/（ランプ定格寿命×0.7）で試算しています（一般社団法人日本照明工業会 技術資料114-1996による）。 | CM71: ※9 年間ランプ交換数は年間点灯時間×総使用本数/（ランプ定格寿命×0.7）で試算しています（一般社団法人日本照明工業会 技術資料114-1996による）。 | CN71: ※9 年間ランプ交換数は年間点灯時間×総使用本数/（ランプ定格寿命×0.7）で試算しています（一般社団法人日本照明工業会 技術資料114-1996による）。 | CO71: ※9 年間ランプ交換数は年間点灯時間×総使用本数/（ランプ定格寿命×0.7）で試算しています（一般社団法人日本照明工業会 技術資料114-1996による）。 | CP71: ※9 年間ランプ交換数は年間点灯時間×総使用本数/（ランプ定格寿命×0.7）で試算しています（一般社団法人日本照明工業会 技術資料114-1996による）。 | CQ71: ※9 年間ランプ交換数は年間点灯時間×総使用本数/（ランプ定格寿命×0.7）で試算しています（一般社団法人日本照明工業会 技術資料114-1996による）。 | CR71: ※9 年間ランプ交換数は年間点灯時間×総使用本数/（ランプ定格寿命×0.7）で試算しています（一般社団法人日本照明工業会 技術資料114-1996による）。 | CS71: ※9 年間ランプ交換数は年間点灯時間×総使用本数/（ランプ定格寿命×0.7）で試算しています（一般社団法人日本照明工業会 技術資料114-1996による）。 | CT71: ※9 年間ランプ交換数は年間点灯時間×総使用本数/（ランプ定格寿命×0.7）で試算しています（一般社団法人日本照明工業会 技術資料114-1996による）。 | CU71: ※9 年間ランプ交換数は年間点灯時間×総使用本数/（ランプ定格寿命×0.7）で試算しています（一般社団法人日本照明工業会 技術資料114-1996による）。 | CV71: ※9 年間ランプ交換数は年間点灯時間×総使用本数/（ランプ定格寿命×0.7）で試算しています（一般社団法人日本照明工業会 技術資料114-1996による）。 | CW71: ※9 年間ランプ交換数は年間点灯時間×総使用本数/（ランプ定格寿命×0.7）で試算しています（一般社団法人日本照明工業会 技術資料114-1996による）。 | CX71: ※9 年間ランプ交換数は年間点灯時間×総使用本数/（ランプ定格寿命×0.7）で試算しています（一般社団法人日本照明工業会 技術資料114-1996による）。 | CY71: ※9 年間ランプ交換数は年間点灯時間×総使用本数/（ランプ定格寿命×0.7）で試算しています（一般社団法人日本照明工業会 技術資料114-1996による）。 | CZ71: ※9 年間ランプ交換数は年間点灯時間×総使用本数/（ランプ定格寿命×0.7）で試算しています（一般社団法人日本照明工業会 技術資料114-1996による）。 | DA71: ※9 年間ランプ交換数は年間点灯時間×総使用本数/（ランプ定格寿命×0.7）で試算しています（一般社団法人日本照明工業会 技術資料114-1996による）。 | DB71: ※9 年間ランプ交換数は年間点灯時間×総使用本数/（ランプ定格寿命×0.7）で試算しています（一般社団法人日本照明工業会 技術資料114-1996による）。 | DC71: ※9 年間ランプ交換数は年間点灯時間×総使用本数/（ランプ定格寿命×0.7）で試算しています（一般社団法人日本照明工業会 技術資料114-1996による）。 | DD71: ※9 年間ランプ交換数は年間点灯時間×総使用本数/（ランプ定格寿命×0.7）で試算しています（一般社団法人日本照明工業会 技術資料114-1996による）。 | DE71: ※9 年間ランプ交換数は年間点灯時間×総使用本数/（ランプ定格寿命×0.7）で試算しています（一般社団法人日本照明工業会 技術資料114-1996による）。 | DF71: ※9 年間ランプ交換数は年間点灯時間×総使用本数/（ランプ定格寿命×0.7）で試算しています（一般社団法人日本照明工業会 技術資料114-1996による）。 | DG71: ※9 年間ランプ交換数は年間点灯時間×総使用本数/（ランプ定格寿命×0.7）で試算しています（一般社団法人日本照明工業会 技術資料114-1996による）。 | DH71: ※9 年間ランプ交換数は年間点灯時間×総使用本数/（ランプ定格寿命×0.7）で試算しています（一般社団法人日本照明工業会 技術資料114-1996による）。 | DI71: ※9 年間ランプ交換数は年間点灯時間×総使用本数/（ランプ定格寿命×0.7）で試算しています（一般社団法人日本照明工業会 技術資料114-1996による）。 | DJ71: ※9 年間ランプ交換数は年間点灯時間×総使用本数/（ランプ定格寿命×0.7）で試算しています（一般社団法人日本照明工業会 技術資料114-1996による）。 | DK71: ※9 年間ランプ交換数は年間点灯時間×総使用本数/（ランプ定格寿命×0.7）で試算しています（一般社団法人日本照明工業会 技術資料114-1996による）。 | DL71: ※9 年間ランプ交換数は年間点灯時間×総使用本数/（ランプ定格寿命×0.7）で試算しています（一般社団法人日本照明工業会 技術資料114-1996による）。 | DM71: ※9 年間ランプ交換数は年間点灯時間×総使用本数/（ランプ定格寿命×0.7）で試算しています（一般社団法人日本照明工業会 技術資料114-1996による）。 | DN71: ※9 年間ランプ交換数は年間点灯時間×総使用本数/（ランプ定格寿命×0.7）で試算しています（一般社団法人日本照明工業会 技術資料114-1996による）。 | DO71: ※9 年間ランプ交換数は年間点灯時間×総使用本数/（ランプ定格寿命×0.7）で試算しています（一般社団法人日本照明工業会 技術資料114-1996による）。 | DP71: ※9 年間ランプ交換数は年間点灯時間×総使用本数/（ランプ定格寿命×0.7）で試算しています（一般社団法人日本照明工業会 技術資料114-1996による）。 | DQ71: ※9 年間ランプ交換数は年間点灯時間×総使用本数/（ランプ定格寿命×0.7）で試算しています（一般社団法人日本照明工業会 技術資料114-1996による）。 | DR71: ※9 年間ランプ交換数は年間点灯時間×総使用本数/（ランプ定格寿命×0.7）で試算しています（一般社団法人日本照明工業会 技術資料114-1996による）。 | DS71: ※9 年間ランプ交換数は年間点灯時間×総使用本数/（ランプ定格寿命×0.7）で試算しています（一般社団法人日本照明工業会 技術資料114-1996による）。 | DT71: ※9 年間ランプ交換数は年間点灯時間×総使用本数/（ランプ定格寿命×0.7）で試算しています（一般社団法人日本照明工業会 技術資料114-1996による）。 | DU71: ※9 年間ランプ交換数は年間点灯時間×総使用本数/（ランプ定格寿命×0.7）で試算しています（一般社団法人日本照明工業会 技術資料114-1996による）。 | DV71: ※9 年間ランプ交換数は年間点灯時間×総使用本数/（ランプ定格寿命×0.7）で試算しています（一般社団法人日本照明工業会 技術資料114-1996による）。 | DW71: ※9 年間ランプ交換数は年間点灯時間×総使用本数/（ランプ定格寿命×0.7）で試算しています（一般社団法人日本照明工業会 技術資料114-1996による）。 | DX71: ※9 年間ランプ交換数は年間点灯時間×総使用本数/（ランプ定格寿命×0.7）で試算しています（一般社団法人日本照明工業会 技術資料114-1996による）。 | DY71: ※9 年間ランプ交換数は年間点灯時間×総使用本数/（ランプ定格寿命×0.7）で試算しています（一般社団法人日本照明工業会 技術資料114-1996による）。 | DZ71: ※9 年間ランプ交換数は年間点灯時間×総使用本数/（ランプ定格寿命×0.7）で試算しています（一般社団法人日本照明工業会 技術資料114-1996による）。 | EA71: ※9 年間ランプ交換数は年間点灯時間×総使用本数/（ランプ定格寿命×0.7）で試算しています（一般社団法人日本照明工業会 技術資料114-1996による）。 | EB71: ※9 年間ランプ交換数は年間点灯時間×総使用本数/（ランプ定格寿命×0.7）で試算しています（一般社団法人日本照明工業会 技術資料114-1996による）。 | EC71: ※9 年間ランプ交換数は年間点灯時間×総使用本数/（ランプ定格寿命×0.7）で試算しています（一般社団法人日本照明工業会 技術資料114-1996による）。 | ED71: ※9 年間ランプ交換数は年間点灯時間×総使用本数/（ランプ定格寿命×0.7）で試算しています（一般社団法人日本照明工業会 技術資料114-1996による）。 | EE71: ※9 年間ランプ交換数は年間点灯時間×総使用本数/（ランプ定格寿命×0.7）で試算しています（一般社団法人日本照明工業会 技術資料114-1996による）。 | EF71: ※9 年間ランプ交換数は年間点灯時間×総使用本数/（ランプ定格寿命×0.7）で試算しています（一般社団法人日本照明工業会 技術資料114-1996による）。 | EG71: ※9 年間ランプ交換数は年間点灯時間×総使用本数/（ランプ定格寿命×0.7）で試算しています（一般社団法人日本照明工業会 技術資料114-1996による）。 | EH71: ※9 年間ランプ交換数は年間点灯時間×総使用本数/（ランプ定格寿命×0.7）で試算しています（一般社団法人日本照明工業会 技術資料114-1996による）。 | EI71: ※9 年間ランプ交換数は年間点灯時間×総使用本数/（ランプ定格寿命×0.7）で試算しています（一般社団法人日本照明工業会 技術資料114-1996による）。 | EJ71: ※9 年間ランプ交換数は年間点灯時間×総使用本数/（ランプ定格寿命×0.7）で試算しています（一般社団法人日本照明工業会 技術資料114-1996による）。 | EK71: ※9 年間ランプ交換数は年間点灯時間×総使用本数/（ランプ定格寿命×0.7）で試算しています（一般社団法人日本照明工業会 技術資料114-1996による）。 | EL71: ※9 年間ランプ交換数は年間点灯時間×総使用本数/（ランプ定格寿命×0.7）で試算しています（一般社団法人日本照明工業会 技術資料114-1996による）。 | EM71: ※9 年間ランプ交換数は年間点灯時間×総使用本数/（ランプ定格寿命×0.7）で試算しています（一般社団法人日本照明工業会 技術資料114-1996による）。 | EN71: ※9 年間ランプ交換数は年間点灯時間×総使用本数/（ランプ定格寿命×0.7）で試算しています（一般社団法人日本照明工業会 技術資料114-1996による）。 | EO71: ※9 年間ランプ交換数は年間点灯時間×総使用本数/（ランプ定格寿命×0.7）で試算しています（一般社団法人日本照明工業会 技術資料114-1996による）。 | EP71: ※9 年間ランプ交換数は年間点灯時間×総使用本数/（ランプ定格寿命×0.7）で試算しています（一般社団法人日本照明工業会 技術資料114-1996による）。 | EQ71: ※9 年間ランプ交換数は年間点灯時間×総使用本数/（ランプ定格寿命×0.7）で試算しています（一般社団法人日本照明工業会 技術資料114-1996による）。 | ER71: ※9 年間ランプ交換数は年間点灯時間×総使用本数/（ランプ定格寿命×0.7）で試算しています（一般社団法人日本照明工業会 技術資料114-1996による）。 | ES71: ※9 年間ランプ交換数は年間点灯時間×総使用本数/（ランプ定格寿命×0.7）で試算しています（一般社団法人日本照明工業会 技術資料114-1996による）。 | ET71: ※9 年間ランプ交換数は年間点灯時間×総使用本数/（ランプ定格寿命×0.7）で試算しています（一般社団法人日本照明工業会 技術資料114-1996による）。 | EU71: ※9 年間ランプ交換数は年間点灯時間×総使用本数/（ランプ定格寿命×0.7）で試算しています（一般社団法人日本照明工業会 技術資料114-1996による）。 | EV71: ※9 年間ランプ交換数は年間点灯時間×総使用本数/（ランプ定格寿命×0.7）で試算しています（一般社団法人日本照明工業会 技術資料114-1996による）。 | EW71: ※9 年間ランプ交換数は年間点灯時間×総使用本数/（ランプ定格寿命×0.7）で試算しています（一般社団法人日本照明工業会 技術資料114-1996による）。 | EX71: ※9 年間ランプ交換数は年間点灯時間×総使用本数/（ランプ定格寿命×0.7）で試算しています（一般社団法人日本照明工業会 技術資料114-1996による）。 | EY71: ※9 年間ランプ交換数は年間点灯時間×総使用本数/（ランプ定格寿命×0.7）で試算しています（一般社団法人日本照明工業会 技術資料114-1996による）。 | EZ71: ※9 年間ランプ交換数は年間点灯時間×総使用本数/（ランプ定格寿命×0.7）で試算しています（一般社団法人日本照明工業会 技術資料114-1996による）。 | FA71: ※9 年間ランプ交換数は年間点灯時間×総使用本数/（ランプ定格寿命×0.7）で試算しています（一般社団法人日本照明工業会 技術資料114-1996による）。 | FB71: ※9 年間ランプ交換数は年間点灯時間×総使用本数/（ランプ定格寿命×0.7）で試算しています（一般社団法人日本照明工業会 技術資料114-1996による）。 | FC71: ※9 年間ランプ交換数は年間点灯時間×総使用本数/（ランプ定格寿命×0.7）で試算しています（一般社団法人日本照明工業会 技術資料114-1996による）。 | FD71: ※9 年間ランプ交換数は年間点灯時間×総使用本数/（ランプ定格寿命×0.7）で試算しています（一般社団法人日本照明工業会 技術資料114-1996による）。 | FE71: ※9 年間ランプ交換数は年間点灯時間×総使用本数/（ランプ定格寿命×0.7）で試算しています（一般社団法人日本照明工業会 技術資料114-1996による）。 | FF71: ※9 年間ランプ交換数は年間点灯時間×総使用本数/（ランプ定格寿命×0.7）で試算しています（一般社団法人日本照明工業会 技術資料114-1996による）。 | FG71: ※9 年間ランプ交換数は年間点灯時間×総使用本数/（ランプ定格寿命×0.7）で試算しています（一般社団法人日本照明工業会 技術資料114-1996による）。 | FH71: ※9 年間ランプ交換数は年間点灯時間×総使用本数/（ランプ定格寿命×0.7）で試算しています（一般社団法人日本照明工業会 技術資料114-1996による）。 | FI71: ※9 年間ランプ交換数は年間点灯時間×総使用本数/（ランプ定格寿命×0.7）で試算しています（一般社団法人日本照明工業会 技術資料114-1996による）。 | FJ71: ※9 年間ランプ交換数は年間点灯時間×総使用本数/（ランプ定格寿命×0.7）で試算しています（一般社団法人日本照明工業会 技術資料114-1996による）。 | FK71: ※9 年間ランプ交換数は年間点灯時間×総使用本数/（ランプ定格寿命×0.7）で試算しています（一般社団法人日本照明工業会 技術資料114-1996による）。 | FL71: ※9 年間ランプ交換数は年間点灯時間×総使用本数/（ランプ定格寿命×0.7）で試算しています（一般社団法人日本照明工業会 技術資料114-1996による）。 | FM71: ※9 年間ランプ交換数は年間点灯時間×総使用本数/（ランプ定格寿命×0.7）で試算しています（一般社団法人日本照明工業会 技術資料114-1996による）。 | FN71: ※9 年間ランプ交換数は年間点灯時間×総使用本数/（ランプ定格寿命×0.7）で試算しています（一般社団法人日本照明工業会 技術資料114-1996による）。 | FO71: ※9 年間ランプ交換数は年間点灯時間×総使用本数/（ランプ定格寿命×0.7）で試算しています（一般社団法人日本照明工業会 技術資料114-1996による）。 | FP71: ※9 年間ランプ交換数は年間点灯時間×総使用本数/（ランプ定格寿命×0.7）で試算しています（一般社団法人日本照明工業会 技術資料114-1996による）。 | FQ71: ※9 年間ランプ交換数は年間点灯時間×総使用本数/（ランプ定格寿命×0.7）で試算しています（一般社団法人日本照明工業会 技術資料114-1996による）。 | FR71: ※9 年間ランプ交換数は年間点灯時間×総使用本数/（ランプ定格寿命×0.7）で試算しています（一般社団法人日本照明工業会 技術資料114-1996による）。 | FS71: ※9 年間ランプ交換数は年間点灯時間×総使用本数/（ランプ定格寿命×0.7）で試算しています（一般社団法人日本照明工業会 技術資料114-1996による）。 | FT71: ※9 年間ランプ交換数は年間点灯時間×総使用本数/（ランプ定格寿命×0.7）で試算しています（一般社団法人日本照明工業会 技術資料114-1996による）。 | FU71: ※9 年間ランプ交換数は年間点灯時間×総使用本数/（ランプ定格寿命×0.7）で試算しています（一般社団法人日本照明工業会 技術資料114-1996による）。 | FV71: ※9 年間ランプ交換数は年間点灯時間×総使用本数/（ランプ定格寿命×0.7）で試算しています（一般社団法人日本照明工業会 技術資料114-1996による）。 | FW71: ※9 年間ランプ交換数は年間点灯時間×総使用本数/（ランプ定格寿命×0.7）で試算しています（一般社団法人日本照明工業会 技術資料114-1996による）。 | FX71: ※9 年間ランプ交換数は年間点灯時間×総使用本数/（ランプ定格寿命×0.7）で試算しています（一般社団法人日本照明工業会 技術資料114-1996による）。 | FY71: ※9 年間ランプ交換数は年間点灯時間×総使用本数/（ランプ定格寿命×0.7）で試算しています（一般社団法人日本照明工業会 技術資料114-1996による）。 | FZ71: ※9 年間ランプ交換数は年間点灯時間×総使用本数/（ランプ定格寿命×0.7）で試算しています（一般社団法人日本照明工業会 技術資料114-1996による）。 | GA71: ※9 年間ランプ交換数は年間点灯時間×総使用本数/（ランプ定格寿命×0.7）で試算しています（一般社団法人日本照明工業会 技術資料114-1996による）。 | GB71: ※9 年間ランプ交換数は年間点灯時間×総使用本数/（ランプ定格寿命×0.7）で試算しています（一般社団法人日本照明工業会 技術資料114-1996による）。 | GC71: ※9 年間ランプ交換数は年間点灯時間×総使用本数/（ランプ定格寿命×0.7）で試算しています（一般社団法人日本照明工業会 技術資料114-1996による）。 | GD71: ※9 年間ランプ交換数は年間点灯時間×総使用本数/（ランプ定格寿命×0.7）で試算しています（一般社団法人日本照明工業会 技術資料114-1996による）。 | GE71: ※9 年間ランプ交換数は年間点灯時間×総使用本数/（ランプ定格寿命×0.7）で試算しています（一般社団法人日本照明工業会 技術資料114-1996による）。 | GF71: ※9 年間ランプ交換数は年間点灯時間×総使用本数/（ランプ定格寿命×0.7）で試算しています（一般社団法人日本照明工業会 技術資料114-1996による）。 | GG71: ※9 年間ランプ交換数は年間点灯時間×総使用本数/（ランプ定格寿命×0.7）で試算しています（一般社団法人日本照明工業会 技術資料114-1996による）。 | GH71: ※9 年間ランプ交換数は年間点灯時間×総使用本数/（ランプ定格寿命×0.7）で試算しています（一般社団法人日本照明工業会 技術資料114-1996による）。 | GI71: ※9 年間ランプ交換数は年間点灯時間×総使用本数/（ランプ定格寿命×0.7）で試算しています（一般社団法人日本照明工業会 技術資料114-1996による）。 | GJ71: ※9 年間ランプ交換数は年間点灯時間×総使用本数/（ランプ定格寿命×0.7）で試算しています（一般社団法人日本照明工業会 技術資料114-1996による）。 | GK71: ※9 年間ランプ交換数は年間点灯時間×総使用本数/（ランプ定格寿命×0.7）で試算しています（一般社団法人日本照明工業会 技術資料114-1996による）。 | GL71: ※9 年間ランプ交換数は年間点灯時間×総使用本数/（ランプ定格寿命×0.7）で試算しています（一般社団法人日本照明工業会 技術資料114-1996による）。 | GM71: ※9 年間ランプ交換数は年間点灯時間×総使用本数/（ランプ定格寿命×0.7）で試算しています（一般社団法人日本照明工業会 技術資料114-1996による）。 | GN71: ※9 年間ランプ交換数は年間点灯時間×総使用本数/（ランプ定格寿命×0.7）で試算しています（一般社団法人日本照明工業会 技術資料114-1996による）。 | GO71: ※9 年間ランプ交換数は年間点灯時間×総使用本数/（ランプ定格寿命×0.7）で試算しています（一般社団法人日本照明工業会 技術資料114-1996による）。 | GP71: ※9 年間ランプ交換数は年間点灯時間×総使用本数/（ランプ定格寿命×0.7）で試算しています（一般社団法人日本照明工業会 技術資料114-1996による）。 | GQ71: ※9 年間ランプ交換数は年間点灯時間×総使用本数/（ランプ定格寿命×0.7）で試算しています（一般社団法人日本照明工業会 技術資料114-1996による）。 | GR71: ※9 年間ランプ交換数は年間点灯時間×総使用本数/（ランプ定格寿命×0.7）で試算しています（一般社団法人日本照明工業会 技術資料114-1996による）。 | GS71: ※9 年間ランプ交換数は年間点灯時間×総使用本数/（ランプ定格寿命×0.7）で試算しています（一般社団法人日本照明工業会 技術資料114-1996による）。 | GT71: ※9 年間ランプ交換数は年間点灯時間×総使用本数/（ランプ定格寿命×0.7）で試算しています（一般社団法人日本照明工業会 技術資料114-1996による）。 | GU71: ※9 年間ランプ交換数は年間点灯時間×総使用本数/（ランプ定格寿命×0.7）で試算しています（一般社団法人日本照明工業会 技術資料114-1996による）。 | GV71: ※9 年間ランプ交換数は年間点灯時間×総使用本数/（ランプ定格寿命×0.7）で試算しています（一般社団法人日本照明工業会 技術資料114-1996による）。 | GW71: ※9 年間ランプ交換数は年間点灯時間×総使用本数/（ランプ定格寿命×0.7）で試算しています（一般社団法人日本照明工業会 技術資料114-1996による）。 | GX71: ※9 年間ランプ交換数は年間点灯時間×総使用本数/（ランプ定格寿命×0.7）で試算しています（一般社団法人日本照明工業会 技術資料114-1996による）。 | GY71: ※9 年間ランプ交換数は年間点灯時間×総使用本数/（ランプ定格寿命×0.7）で試算しています（一般社団法人日本照明工業会 技術資料114-1996による）。 | GZ71: ※9 年間ランプ交換数は年間点灯時間×総使用本数/（ランプ定格寿命×0.7）で試算しています（一般社団法人日本照明工業会 技術資料114-1996による）。 | HA71: ※9 年間ランプ交換数は年間点灯時間×総使用本数/（ランプ定格寿命×0.7）で試算しています（一般社団法人日本照明工業会 技術資料114-1996による）。 | HB71: ※9 年間ランプ交換数は年間点灯時間×総使用本数/（ランプ定格寿命×0.7）で試算しています（一般社団法人日本照明工業会 技術資料114-1996による）。 | HC71: ※9 年間ランプ交換数は年間点灯時間×総使用本数/（ランプ定格寿命×0.7）で試算しています（一般社団法人日本照明工業会 技術資料114-1996による）。 | HD71: ※9 年間ランプ交換数は年間点灯時間×総使用本数/（ランプ定格寿命×0.7）で試算しています（一般社団法人日本照明工業会 技術資料114-1996による）。 | HE71: ※9 年間ランプ交換数は年間点灯時間×総使用本数/（ランプ定格寿命×0.7）で試算しています（一般社団法人日本照明工業会 技術資料114-1996による）。 | HF71: ※9 年間ランプ交換数は年間点灯時間×総使用本数/（ランプ定格寿命×0.7）で試算しています（一般社団法人日本照明工業会 技術資料114-1996による）。 | HG71: ※9 年間ランプ交換数は年間点灯時間×総使用本数/（ランプ定格寿命×0.7）で試算しています（一般社団法人日本照明工業会 技術資料114-1996による）。 | HH71: ※9 年間ランプ交換数は年間点灯時間×総使用本数/（ランプ定格寿命×0.7）で試算しています（一般社団法人日本照明工業会 技術資料114-1996による）。 | HI71: ※9 年間ランプ交換数は年間点灯時間×総使用本数/（ランプ定格寿命×0.7）で試算しています（一般社団法人日本照明工業会 技術資料114-1996による）。 | HJ71: ※9 年間ランプ交換数は年間点灯時間×総使用本数/（ランプ定格寿命×0.7）で試算しています（一般社団法人日本照明工業会 技術資料114-1996による）。 | HK71: ※9 年間ランプ交換数は年間点灯時間×総使用本数/（ランプ定格寿命×0.7）で試算しています（一般社団法人日本照明工業会 技術資料114-1996による）。 | HL71: ※9 年間ランプ交換数は年間点灯時間×総使用本数/（ランプ定格寿命×0.7）で試算しています（一般社団法人日本照明工業会 技術資料114-1996による）。 | HM71: ※9 年間ランプ交換数は年間点灯時間×総使用本数/（ランプ定格寿命×0.7）で試算しています（一般社団法人日本照明工業会 技術資料114-1996による）。 | HN71: ※9 年間ランプ交換数は年間点灯時間×総使用本数/（ランプ定格寿命×0.7）で試算しています（一般社団法人日本照明工業会 技術資料114-1996による）。 | HO71: ※9 年間ランプ交換数は年間点灯時間×総使用本数/（ランプ定格寿命×0.7）で試算しています（一般社団法人日本照明工業会 技術資料114-1996による）。 | HP71: ※9 年間ランプ交換数は年間点灯時間×総使用本数/（ランプ定格寿命×0.7）で試算しています（一般社団法人日本照明工業会 技術資料114-1996による）。 | HQ71: ※9 年間ランプ交換数は年間点灯時間×総使用本数/（ランプ定格寿命×0.7）で試算しています（一般社団法人日本照明工業会 技術資料114-1996による）。 | HR71: ※9 年間ランプ交換数は年間点灯時間×総使用本数/（ランプ定格寿命×0.7）で試算しています（一般社団法人日本照明工業会 技術資料114-1996による）。 | HS71: ※9 年間ランプ交換数は年間点灯時間×総使用本数/（ランプ定格寿命×0.7）で試算しています（一般社団法人日本照明工業会 技術資料114-1996による）。 | HT71: ※9 年間ランプ交換数は年間点灯時間×総使用本数/（ランプ定格寿命×0.7）で試算しています（一般社団法人日本照明工業会 技術資料114-1996による）。 | HU71: ※9 年間ランプ交換数は年間点灯時間×総使用本数/（ランプ定格寿命×0.7）で試算しています（一般社団法人日本照明工業会 技術資料114-1996による）。 | HV71: ※9 年間ランプ交換数は年間点灯時間×総使用本数/（ランプ定格寿命×0.7）で試算しています（一般社団法人日本照明工業会 技術資料114-1996による）。 | HW71: ※9 年間ランプ交換数は年間点灯時間×総使用本数/（ランプ定格寿命×0.7）で試算しています（一般社団法人日本照明工業会 技術資料114-1996による）。 | HX71: ※9 年間ランプ交換数は年間点灯時間×総使用本数/（ランプ定格寿命×0.7）で試算しています（一般社団法人日本照明工業会 技術資料114-1996による）。 | HY71: ※9 年間ランプ交換数は年間点灯時間×総使用本数/（ランプ定格寿命×0.7）で試算しています（一般社団法人日本照明工業会 技術資料114-1996による）。 | HZ71: ※9 年間ランプ交換数は年間点灯時間×総使用本数/（ランプ定格寿命×0.7）で試算しています（一般社団法人日本照明工業会 技術資料114-1996による）。 | IA71: ※9 年間ランプ交換数は年間点灯時間×総使用本数/（ランプ定格寿命×0.7）で試算しています（一般社団法人日本照明工業会 技術資料114-1996による）。 | IB71: ※9 年間ランプ交換数は年間点灯時間×総使用本数/（ランプ定格寿命×0.7）で試算しています（一般社団法人日本照明工業会 技術資料114-1996による）。 | IC71: ※9 年間ランプ交換数は年間点灯時間×総使用本数/（ランプ定格寿命×0.7）で試算しています（一般社団法人日本照明工業会 技術資料114-1996による）。 | ID71: ※9 年間ランプ交換数は年間点灯時間×総使用本数/（ランプ定格寿命×0.7）で試算しています（一般社団法人日本照明工業会 技術資料114-1996による）。 | IE71: ※9 年間ランプ交換数は年間点灯時間×総使用本数/（ランプ定格寿命×0.7）で試算しています（一般社団法人日本照明工業会 技術資料114-1996による）。 | IF71: ※9 年間ランプ交換数は年間点灯時間×総使用本数/（ランプ定格寿命×0.7）で試算しています（一般社団法人日本照明工業会 技術資料114-1996による）。 | IG71: ※9 年間ランプ交換数は年間点灯時間×総使用本数/（ランプ定格寿命×0.7）で試算しています（一般社団法人日本照明工業会 技術資料114-1996による）。 | IH71: ※9 年間ランプ交換数は年間点灯時間×総使用本数/（ランプ定格寿命×0.7）で試算しています（一般社団法人日本照明工業会 技術資料114-1996による）。 | II71: ※9 年間ランプ交換数は年間点灯時間×総使用本数/（ランプ定格寿命×0.7）で試算しています（一般社団法人日本照明工業会 技術資料114-1996による）。 | IJ71: ※9 年間ランプ交換数は年間点灯時間×総使用本数/（ランプ定格寿命×0.7）で試算しています（一般社団法人日本照明工業会 技術資料114-1996による）。 | IK71: ※9 年間ランプ交換数は年間点灯時間×総使用本数/（ランプ定格寿命×0.7）で試算しています（一般社団法人日本照明工業会 技術資料114-1996による）。 | IL71: ※9 年間ランプ交換数は年間点灯時間×総使用本数/（ランプ定格寿命×0.7）で試算しています（一般社団法人日本照明工業会 技術資料114-1996による）。 | IM71: ※9 年間ランプ交換数は年間点灯時間×総使用本数/（ランプ定格寿命×0.7）で試算しています（一般社団法人日本照明工業会 技術資料114-1996による）。 | IN71: ※9 年間ランプ交換数は年間点灯時間×総使用本数/（ランプ定格寿命×0.7）で試算しています（一般社団法人日本照明工業会 技術資料114-1996による）。 | IO71: ※9 年間ランプ交換数は年間点灯時間×総使用本数/（ランプ定格寿命×0.7）で試算しています（一般社団法人日本照明工業会 技術資料114-1996による）。 | IP71: ※9 年間ランプ交換数は年間点灯時間×総使用本数/（ランプ定格寿命×0.7）で試算しています（一般社団法人日本照明工業会 技術資料114-1996による）。 | IQ71: ※9 年間ランプ交換数は年間点灯時間×総使用本数/（ランプ定格寿命×0.7）で試算しています（一般社団法人日本照明工業会 技術資料114-1996による）。 | IR71: ※9 年間ランプ交換数は年間点灯時間×総使用本数/（ランプ定格寿命×0.7）で試算しています（一般社団法人日本照明工業会 技術資料114-1996による）。 | IS71: ※9 年間ランプ交換数は年間点灯時間×総使用本数/（ランプ定格寿命×0.7）で試算しています（一般社団法人日本照明工業会 技術資料114-1996による）。 | IT71: ※9 年間ランプ交換数は年間点灯時間×総使用本数/（ランプ定格寿命×0.7）で試算しています（一般社団法人日本照明工業会 技術資料114-1996による）。 | IU71: ※9 年間ランプ交換数は年間点灯時間×総使用本数/（ランプ定格寿命×0.7）で試算しています（一般社団法人日本照明工業会 技術資料114-1996による）。 | IV71: ※9 年間ランプ交換数は年間点灯時間×総使用本数/（ランプ定格寿命×0.7）で試算しています（一般社団法人日本照明工業会 技術資料114-1996による）。
N72: ※10 年間交換作業費は40形を200円/本（税抜）、110形を800円/本（税抜）で試算しています（一般社団法人日本照明工業会 技術資料114-1996による）。 | O72: ※10 年間交換作業費は40形を200円/本（税抜）、110形を800円/本（税抜）で試算しています（一般社団法人日本照明工業会 技術資料114-1996による）。 | P72: ※10 年間交換作業費は40形を200円/本（税抜）、110形を800円/本（税抜）で試算しています（一般社団法人日本照明工業会 技術資料114-1996による）。 | Q72: ※10 年間交換作業費は40形を200円/本（税抜）、110形を800円/本（税抜）で試算しています（一般社団法人日本照明工業会 技術資料114-1996による）。 | R72: ※10 年間交換作業費は40形を200円/本（税抜）、110形を800円/本（税抜）で試算しています（一般社団法人日本照明工業会 技術資料114-1996による）。 | S72: ※10 年間交換作業費は40形を200円/本（税抜）、110形を800円/本（税抜）で試算しています（一般社団法人日本照明工業会 技術資料114-1996による）。 | T72: ※10 年間交換作業費は40形を200円/本（税抜）、110形を800円/本（税抜）で試算しています（一般社団法人日本照明工業会 技術資料114-1996による）。 | U72: ※10 年間交換作業費は40形を200円/本（税抜）、110形を800円/本（税抜）で試算しています（一般社団法人日本照明工業会 技術資料114-1996による）。 | V72: ※10 年間交換作業費は40形を200円/本（税抜）、110形を800円/本（税抜）で試算しています（一般社団法人日本照明工業会 技術資料114-1996による）。 | W72: ※10 年間交換作業費は40形を200円/本（税抜）、110形を800円/本（税抜）で試算しています（一般社団法人日本照明工業会 技術資料114-1996による）。 | X72: ※10 年間交換作業費は40形を200円/本（税抜）、110形を800円/本（税抜）で試算しています（一般社団法人日本照明工業会 技術資料114-1996による）。 | Y72: ※10 年間交換作業費は40形を200円/本（税抜）、110形を800円/本（税抜）で試算しています（一般社団法人日本照明工業会 技術資料114-1996による）。 | Z72: ※10 年間交換作業費は40形を200円/本（税抜）、110形を800円/本（税抜）で試算しています（一般社団法人日本照明工業会 技術資料114-1996による）。 | AA72: ※10 年間交換作業費は40形を200円/本（税抜）、110形を800円/本（税抜）で試算しています（一般社団法人日本照明工業会 技術資料114-1996による）。 | AB72: ※10 年間交換作業費は40形を200円/本（税抜）、110形を800円/本（税抜）で試算しています（一般社団法人日本照明工業会 技術資料114-1996による）。 | AC72: ※10 年間交換作業費は40形を200円/本（税抜）、110形を800円/本（税抜）で試算しています（一般社団法人日本照明工業会 技術資料114-1996による）。 | AD72: ※10 年間交換作業費は40形を200円/本（税抜）、110形を800円/本（税抜）で試算しています（一般社団法人日本照明工業会 技術資料114-1996による）。 | AE72: ※10 年間交換作業費は40形を200円/本（税抜）、110形を800円/本（税抜）で試算しています（一般社団法人日本照明工業会 技術資料114-1996による）。 | AF72: ※10 年間交換作業費は40形を200円/本（税抜）、110形を800円/本（税抜）で試算しています（一般社団法人日本照明工業会 技術資料114-1996による）。 | AG72: ※10 年間交換作業費は40形を200円/本（税抜）、110形を800円/本（税抜）で試算しています（一般社団法人日本照明工業会 技術資料114-1996による）。 | AH72: ※10 年間交換作業費は40形を200円/本（税抜）、110形を800円/本（税抜）で試算しています（一般社団法人日本照明工業会 技術資料114-1996による）。 | AI72: ※10 年間交換作業費は40形を200円/本（税抜）、110形を800円/本（税抜）で試算しています（一般社団法人日本照明工業会 技術資料114-1996による）。 | AJ72: ※10 年間交換作業費は40形を200円/本（税抜）、110形を800円/本（税抜）で試算しています（一般社団法人日本照明工業会 技術資料114-1996による）。 | AK72: ※10 年間交換作業費は40形を200円/本（税抜）、110形を800円/本（税抜）で試算しています（一般社団法人日本照明工業会 技術資料114-1996による）。 | AL72: ※10 年間交換作業費は40形を200円/本（税抜）、110形を800円/本（税抜）で試算しています（一般社団法人日本照明工業会 技術資料114-1996による）。 | AM72: ※10 年間交換作業費は40形を200円/本（税抜）、110形を800円/本（税抜）で試算しています（一般社団法人日本照明工業会 技術資料114-1996による）。 | AN72: ※10 年間交換作業費は40形を200円/本（税抜）、110形を800円/本（税抜）で試算しています（一般社団法人日本照明工業会 技術資料114-1996による）。 | AO72: ※10 年間交換作業費は40形を200円/本（税抜）、110形を800円/本（税抜）で試算しています（一般社団法人日本照明工業会 技術資料114-1996による）。 | AP72: ※10 年間交換作業費は40形を200円/本（税抜）、110形を800円/本（税抜）で試算しています（一般社団法人日本照明工業会 技術資料114-1996による）。 | AQ72: ※10 年間交換作業費は40形を200円/本（税抜）、110形を800円/本（税抜）で試算しています（一般社団法人日本照明工業会 技術資料114-1996による）。 | AR72: ※10 年間交換作業費は40形を200円/本（税抜）、110形を800円/本（税抜）で試算しています（一般社団法人日本照明工業会 技術資料114-1996による）。 | AS72: ※10 年間交換作業費は40形を200円/本（税抜）、110形を800円/本（税抜）で試算しています（一般社団法人日本照明工業会 技術資料114-1996による）。 | AT72: ※10 年間交換作業費は40形を200円/本（税抜）、110形を800円/本（税抜）で試算しています（一般社団法人日本照明工業会 技術資料114-1996による）。 | AU72: ※10 年間交換作業費は40形を200円/本（税抜）、110形を800円/本（税抜）で試算しています（一般社団法人日本照明工業会 技術資料114-1996による）。 | AV72: ※10 年間交換作業費は40形を200円/本（税抜）、110形を800円/本（税抜）で試算しています（一般社団法人日本照明工業会 技術資料114-1996による）。 | AW72: ※10 年間交換作業費は40形を200円/本（税抜）、110形を800円/本（税抜）で試算しています（一般社団法人日本照明工業会 技術資料114-1996による）。 | AX72: ※10 年間交換作業費は40形を200円/本（税抜）、110形を800円/本（税抜）で試算しています（一般社団法人日本照明工業会 技術資料114-1996による）。 | AY72: ※10 年間交換作業費は40形を200円/本（税抜）、110形を800円/本（税抜）で試算しています（一般社団法人日本照明工業会 技術資料114-1996による）。 | AZ72: ※10 年間交換作業費は40形を200円/本（税抜）、110形を800円/本（税抜）で試算しています（一般社団法人日本照明工業会 技術資料114-1996による）。 | BA72: ※10 年間交換作業費は40形を200円/本（税抜）、110形を800円/本（税抜）で試算しています（一般社団法人日本照明工業会 技術資料114-1996による）。 | BB72: ※10 年間交換作業費は40形を200円/本（税抜）、110形を800円/本（税抜）で試算しています（一般社団法人日本照明工業会 技術資料114-1996による）。 | BC72: ※10 年間交換作業費は40形を200円/本（税抜）、110形を800円/本（税抜）で試算しています（一般社団法人日本照明工業会 技術資料114-1996による）。 | BD72: ※10 年間交換作業費は40形を200円/本（税抜）、110形を800円/本（税抜）で試算しています（一般社団法人日本照明工業会 技術資料114-1996による）。 | BE72: ※10 年間交換作業費は40形を200円/本（税抜）、110形を800円/本（税抜）で試算しています（一般社団法人日本照明工業会 技術資料114-1996による）。 | BF72: ※10 年間交換作業費は40形を200円/本（税抜）、110形を800円/本（税抜）で試算しています（一般社団法人日本照明工業会 技術資料114-1996による）。 | BG72: ※10 年間交換作業費は40形を200円/本（税抜）、110形を800円/本（税抜）で試算しています（一般社団法人日本照明工業会 技術資料114-1996による）。 | BH72: ※10 年間交換作業費は40形を200円/本（税抜）、110形を800円/本（税抜）で試算しています（一般社団法人日本照明工業会 技術資料114-1996による）。 | BI72: ※10 年間交換作業費は40形を200円/本（税抜）、110形を800円/本（税抜）で試算しています（一般社団法人日本照明工業会 技術資料114-1996による）。 | BJ72: ※10 年間交換作業費は40形を200円/本（税抜）、110形を800円/本（税抜）で試算しています（一般社団法人日本照明工業会 技術資料114-1996による）。 | BK72: ※10 年間交換作業費は40形を200円/本（税抜）、110形を800円/本（税抜）で試算しています（一般社団法人日本照明工業会 技術資料114-1996による）。 | BL72: ※10 年間交換作業費は40形を200円/本（税抜）、110形を800円/本（税抜）で試算しています（一般社団法人日本照明工業会 技術資料114-1996による）。 | BM72: ※10 年間交換作業費は40形を200円/本（税抜）、110形を800円/本（税抜）で試算しています（一般社団法人日本照明工業会 技術資料114-1996による）。 | BN72: ※10 年間交換作業費は40形を200円/本（税抜）、110形を800円/本（税抜）で試算しています（一般社団法人日本照明工業会 技術資料114-1996による）。 | BO72: ※10 年間交換作業費は40形を200円/本（税抜）、110形を800円/本（税抜）で試算しています（一般社団法人日本照明工業会 技術資料114-1996による）。 | BP72: ※10 年間交換作業費は40形を200円/本（税抜）、110形を800円/本（税抜）で試算しています（一般社団法人日本照明工業会 技術資料114-1996による）。 | BQ72: ※10 年間交換作業費は40形を200円/本（税抜）、110形を800円/本（税抜）で試算しています（一般社団法人日本照明工業会 技術資料114-1996による）。 | BR72: ※10 年間交換作業費は40形を200円/本（税抜）、110形を800円/本（税抜）で試算しています（一般社団法人日本照明工業会 技術資料114-1996による）。 | BS72: ※10 年間交換作業費は40形を200円/本（税抜）、110形を800円/本（税抜）で試算しています（一般社団法人日本照明工業会 技術資料114-1996による）。 | BT72: ※10 年間交換作業費は40形を200円/本（税抜）、110形を800円/本（税抜）で試算しています（一般社団法人日本照明工業会 技術資料114-1996による）。 | BU72: ※10 年間交換作業費は40形を200円/本（税抜）、110形を800円/本（税抜）で試算しています（一般社団法人日本照明工業会 技術資料114-1996による）。 | BV72: ※10 年間交換作業費は40形を200円/本（税抜）、110形を800円/本（税抜）で試算しています（一般社団法人日本照明工業会 技術資料114-1996による）。 | BW72: ※10 年間交換作業費は40形を200円/本（税抜）、110形を800円/本（税抜）で試算しています（一般社団法人日本照明工業会 技術資料114-1996による）。 | BX72: ※10 年間交換作業費は40形を200円/本（税抜）、110形を800円/本（税抜）で試算しています（一般社団法人日本照明工業会 技術資料114-1996による）。 | BY72: ※10 年間交換作業費は40形を200円/本（税抜）、110形を800円/本（税抜）で試算しています（一般社団法人日本照明工業会 技術資料114-1996による）。 | BZ72: ※10 年間交換作業費は40形を200円/本（税抜）、110形を800円/本（税抜）で試算しています（一般社団法人日本照明工業会 技術資料114-1996による）。 | CA72: ※10 年間交換作業費は40形を200円/本（税抜）、110形を800円/本（税抜）で試算しています（一般社団法人日本照明工業会 技術資料114-1996による）。 | CB72: ※10 年間交換作業費は40形を200円/本（税抜）、110形を800円/本（税抜）で試算しています（一般社団法人日本照明工業会 技術資料114-1996による）。 | CC72: ※10 年間交換作業費は40形を200円/本（税抜）、110形を800円/本（税抜）で試算しています（一般社団法人日本照明工業会 技術資料114-1996による）。 | CD72: ※10 年間交換作業費は40形を200円/本（税抜）、110形を800円/本（税抜）で試算しています（一般社団法人日本照明工業会 技術資料114-1996による）。 | CE72: ※10 年間交換作業費は40形を200円/本（税抜）、110形を800円/本（税抜）で試算しています（一般社団法人日本照明工業会 技術資料114-1996による）。 | CF72: ※10 年間交換作業費は40形を200円/本（税抜）、110形を800円/本（税抜）で試算しています（一般社団法人日本照明工業会 技術資料114-1996による）。 | CG72: ※10 年間交換作業費は40形を200円/本（税抜）、110形を800円/本（税抜）で試算しています（一般社団法人日本照明工業会 技術資料114-1996による）。 | CH72: ※10 年間交換作業費は40形を200円/本（税抜）、110形を800円/本（税抜）で試算しています（一般社団法人日本照明工業会 技術資料114-1996による）。 | CI72: ※10 年間交換作業費は40形を200円/本（税抜）、110形を800円/本（税抜）で試算しています（一般社団法人日本照明工業会 技術資料114-1996による）。 | CJ72: ※10 年間交換作業費は40形を200円/本（税抜）、110形を800円/本（税抜）で試算しています（一般社団法人日本照明工業会 技術資料114-1996による）。 | CK72: ※10 年間交換作業費は40形を200円/本（税抜）、110形を800円/本（税抜）で試算しています（一般社団法人日本照明工業会 技術資料114-1996による）。 | CL72: ※10 年間交換作業費は40形を200円/本（税抜）、110形を800円/本（税抜）で試算しています（一般社団法人日本照明工業会 技術資料114-1996による）。 | CM72: ※10 年間交換作業費は40形を200円/本（税抜）、110形を800円/本（税抜）で試算しています（一般社団法人日本照明工業会 技術資料114-1996による）。 | CN72: ※10 年間交換作業費は40形を200円/本（税抜）、110形を800円/本（税抜）で試算しています（一般社団法人日本照明工業会 技術資料114-1996による）。 | CO72: ※10 年間交換作業費は40形を200円/本（税抜）、110形を800円/本（税抜）で試算しています（一般社団法人日本照明工業会 技術資料114-1996による）。 | CP72: ※10 年間交換作業費は40形を200円/本（税抜）、110形を800円/本（税抜）で試算しています（一般社団法人日本照明工業会 技術資料114-1996による）。 | CQ72: ※10 年間交換作業費は40形を200円/本（税抜）、110形を800円/本（税抜）で試算しています（一般社団法人日本照明工業会 技術資料114-1996による）。 | CR72: ※10 年間交換作業費は40形を200円/本（税抜）、110形を800円/本（税抜）で試算しています（一般社団法人日本照明工業会 技術資料114-1996による）。 | CS72: ※10 年間交換作業費は40形を200円/本（税抜）、110形を800円/本（税抜）で試算しています（一般社団法人日本照明工業会 技術資料114-1996による）。 | CT72: ※10 年間交換作業費は40形を200円/本（税抜）、110形を800円/本（税抜）で試算しています（一般社団法人日本照明工業会 技術資料114-1996による）。 | CU72: ※10 年間交換作業費は40形を200円/本（税抜）、110形を800円/本（税抜）で試算しています（一般社団法人日本照明工業会 技術資料114-1996による）。 | CV72: ※10 年間交換作業費は40形を200円/本（税抜）、110形を800円/本（税抜）で試算しています（一般社団法人日本照明工業会 技術資料114-1996による）。 | CW72: ※10 年間交換作業費は40形を200円/本（税抜）、110形を800円/本（税抜）で試算しています（一般社団法人日本照明工業会 技術資料114-1996による）。 | CX72: ※10 年間交換作業費は40形を200円/本（税抜）、110形を800円/本（税抜）で試算しています（一般社団法人日本照明工業会 技術資料114-1996による）。 | CY72: ※10 年間交換作業費は40形を200円/本（税抜）、110形を800円/本（税抜）で試算しています（一般社団法人日本照明工業会 技術資料114-1996による）。 | CZ72: ※10 年間交換作業費は40形を200円/本（税抜）、110形を800円/本（税抜）で試算しています（一般社団法人日本照明工業会 技術資料114-1996による）。 | DA72: ※10 年間交換作業費は40形を200円/本（税抜）、110形を800円/本（税抜）で試算しています（一般社団法人日本照明工業会 技術資料114-1996による）。 | DB72: ※10 年間交換作業費は40形を200円/本（税抜）、110形を800円/本（税抜）で試算しています（一般社団法人日本照明工業会 技術資料114-1996による）。 | DC72: ※10 年間交換作業費は40形を200円/本（税抜）、110形を800円/本（税抜）で試算しています（一般社団法人日本照明工業会 技術資料114-1996による）。 | DD72: ※10 年間交換作業費は40形を200円/本（税抜）、110形を800円/本（税抜）で試算しています（一般社団法人日本照明工業会 技術資料114-1996による）。 | DE72: ※10 年間交換作業費は40形を200円/本（税抜）、110形を800円/本（税抜）で試算しています（一般社団法人日本照明工業会 技術資料114-1996による）。 | DF72: ※10 年間交換作業費は40形を200円/本（税抜）、110形を800円/本（税抜）で試算しています（一般社団法人日本照明工業会 技術資料114-1996による）。 | DG72: ※10 年間交換作業費は40形を200円/本（税抜）、110形を800円/本（税抜）で試算しています（一般社団法人日本照明工業会 技術資料114-1996による）。 | DH72: ※10 年間交換作業費は40形を200円/本（税抜）、110形を800円/本（税抜）で試算しています（一般社団法人日本照明工業会 技術資料114-1996による）。 | DI72: ※10 年間交換作業費は40形を200円/本（税抜）、110形を800円/本（税抜）で試算しています（一般社団法人日本照明工業会 技術資料114-1996による）。 | DJ72: ※10 年間交換作業費は40形を200円/本（税抜）、110形を800円/本（税抜）で試算しています（一般社団法人日本照明工業会 技術資料114-1996による）。 | DK72: ※10 年間交換作業費は40形を200円/本（税抜）、110形を800円/本（税抜）で試算しています（一般社団法人日本照明工業会 技術資料114-1996による）。 | DL72: ※10 年間交換作業費は40形を200円/本（税抜）、110形を800円/本（税抜）で試算しています（一般社団法人日本照明工業会 技術資料114-1996による）。 | DM72: ※10 年間交換作業費は40形を200円/本（税抜）、110形を800円/本（税抜）で試算しています（一般社団法人日本照明工業会 技術資料114-1996による）。 | DN72: ※10 年間交換作業費は40形を200円/本（税抜）、110形を800円/本（税抜）で試算しています（一般社団法人日本照明工業会 技術資料114-1996による）。 | DO72: ※10 年間交換作業費は40形を200円/本（税抜）、110形を800円/本（税抜）で試算しています（一般社団法人日本照明工業会 技術資料114-1996による）。 | DP72: ※10 年間交換作業費は40形を200円/本（税抜）、110形を800円/本（税抜）で試算しています（一般社団法人日本照明工業会 技術資料114-1996による）。 | DQ72: ※10 年間交換作業費は40形を200円/本（税抜）、110形を800円/本（税抜）で試算しています（一般社団法人日本照明工業会 技術資料114-1996による）。 | DR72: ※10 年間交換作業費は40形を200円/本（税抜）、110形を800円/本（税抜）で試算しています（一般社団法人日本照明工業会 技術資料114-1996による）。 | DS72: ※10 年間交換作業費は40形を200円/本（税抜）、110形を800円/本（税抜）で試算しています（一般社団法人日本照明工業会 技術資料114-1996による）。 | DT72: ※10 年間交換作業費は40形を200円/本（税抜）、110形を800円/本（税抜）で試算しています（一般社団法人日本照明工業会 技術資料114-1996による）。 | DU72: ※10 年間交換作業費は40形を200円/本（税抜）、110形を800円/本（税抜）で試算しています（一般社団法人日本照明工業会 技術資料114-1996による）。 | DV72: ※10 年間交換作業費は40形を200円/本（税抜）、110形を800円/本（税抜）で試算しています（一般社団法人日本照明工業会 技術資料114-1996による）。 | DW72: ※10 年間交換作業費は40形を200円/本（税抜）、110形を800円/本（税抜）で試算しています（一般社団法人日本照明工業会 技術資料114-1996による）。 | DX72: ※10 年間交換作業費は40形を200円/本（税抜）、110形を800円/本（税抜）で試算しています（一般社団法人日本照明工業会 技術資料114-1996による）。 | DY72: ※10 年間交換作業費は40形を200円/本（税抜）、110形を800円/本（税抜）で試算しています（一般社団法人日本照明工業会 技術資料114-1996による）。 | DZ72: ※10 年間交換作業費は40形を200円/本（税抜）、110形を800円/本（税抜）で試算しています（一般社団法人日本照明工業会 技術資料114-1996による）。 | EA72: ※10 年間交換作業費は40形を200円/本（税抜）、110形を800円/本（税抜）で試算しています（一般社団法人日本照明工業会 技術資料114-1996による）。 | EB72: ※10 年間交換作業費は40形を200円/本（税抜）、110形を800円/本（税抜）で試算しています（一般社団法人日本照明工業会 技術資料114-1996による）。 | EC72: ※10 年間交換作業費は40形を200円/本（税抜）、110形を800円/本（税抜）で試算しています（一般社団法人日本照明工業会 技術資料114-1996による）。 | ED72: ※10 年間交換作業費は40形を200円/本（税抜）、110形を800円/本（税抜）で試算しています（一般社団法人日本照明工業会 技術資料114-1996による）。 | EE72: ※10 年間交換作業費は40形を200円/本（税抜）、110形を800円/本（税抜）で試算しています（一般社団法人日本照明工業会 技術資料114-1996による）。 | EF72: ※10 年間交換作業費は40形を200円/本（税抜）、110形を800円/本（税抜）で試算しています（一般社団法人日本照明工業会 技術資料114-1996による）。 | EG72: ※10 年間交換作業費は40形を200円/本（税抜）、110形を800円/本（税抜）で試算しています（一般社団法人日本照明工業会 技術資料114-1996による）。 | EH72: ※10 年間交換作業費は40形を200円/本（税抜）、110形を800円/本（税抜）で試算しています（一般社団法人日本照明工業会 技術資料114-1996による）。 | EI72: ※10 年間交換作業費は40形を200円/本（税抜）、110形を800円/本（税抜）で試算しています（一般社団法人日本照明工業会 技術資料114-1996による）。 | EJ72: ※10 年間交換作業費は40形を200円/本（税抜）、110形を800円/本（税抜）で試算しています（一般社団法人日本照明工業会 技術資料114-1996による）。 | EK72: ※10 年間交換作業費は40形を200円/本（税抜）、110形を800円/本（税抜）で試算しています（一般社団法人日本照明工業会 技術資料114-1996による）。 | EL72: ※10 年間交換作業費は40形を200円/本（税抜）、110形を800円/本（税抜）で試算しています（一般社団法人日本照明工業会 技術資料114-1996による）。 | EM72: ※10 年間交換作業費は40形を200円/本（税抜）、110形を800円/本（税抜）で試算しています（一般社団法人日本照明工業会 技術資料114-1996による）。 | EN72: ※10 年間交換作業費は40形を200円/本（税抜）、110形を800円/本（税抜）で試算しています（一般社団法人日本照明工業会 技術資料114-1996による）。 | EO72: ※10 年間交換作業費は40形を200円/本（税抜）、110形を800円/本（税抜）で試算しています（一般社団法人日本照明工業会 技術資料114-1996による）。 | EP72: ※10 年間交換作業費は40形を200円/本（税抜）、110形を800円/本（税抜）で試算しています（一般社団法人日本照明工業会 技術資料114-1996による）。 | EQ72: ※10 年間交換作業費は40形を200円/本（税抜）、110形を800円/本（税抜）で試算しています（一般社団法人日本照明工業会 技術資料114-1996による）。 | ER72: ※10 年間交換作業費は40形を200円/本（税抜）、110形を800円/本（税抜）で試算しています（一般社団法人日本照明工業会 技術資料114-1996による）。 | ES72: ※10 年間交換作業費は40形を200円/本（税抜）、110形を800円/本（税抜）で試算しています（一般社団法人日本照明工業会 技術資料114-1996による）。 | ET72: ※10 年間交換作業費は40形を200円/本（税抜）、110形を800円/本（税抜）で試算しています（一般社団法人日本照明工業会 技術資料114-1996による）。 | EU72: ※10 年間交換作業費は40形を200円/本（税抜）、110形を800円/本（税抜）で試算しています（一般社団法人日本照明工業会 技術資料114-1996による）。 | EV72: ※10 年間交換作業費は40形を200円/本（税抜）、110形を800円/本（税抜）で試算しています（一般社団法人日本照明工業会 技術資料114-1996による）。 | EW72: ※10 年間交換作業費は40形を200円/本（税抜）、110形を800円/本（税抜）で試算しています（一般社団法人日本照明工業会 技術資料114-1996による）。 | EX72: ※10 年間交換作業費は40形を200円/本（税抜）、110形を800円/本（税抜）で試算しています（一般社団法人日本照明工業会 技術資料114-1996による）。 | EY72: ※10 年間交換作業費は40形を200円/本（税抜）、110形を800円/本（税抜）で試算しています（一般社団法人日本照明工業会 技術資料114-1996による）。 | EZ72: ※10 年間交換作業費は40形を200円/本（税抜）、110形を800円/本（税抜）で試算しています（一般社団法人日本照明工業会 技術資料114-1996による）。 | FA72: ※10 年間交換作業費は40形を200円/本（税抜）、110形を800円/本（税抜）で試算しています（一般社団法人日本照明工業会 技術資料114-1996による）。 | FB72: ※10 年間交換作業費は40形を200円/本（税抜）、110形を800円/本（税抜）で試算しています（一般社団法人日本照明工業会 技術資料114-1996による）。 | FC72: ※10 年間交換作業費は40形を200円/本（税抜）、110形を800円/本（税抜）で試算しています（一般社団法人日本照明工業会 技術資料114-1996による）。 | FD72: ※10 年間交換作業費は40形を200円/本（税抜）、110形を800円/本（税抜）で試算しています（一般社団法人日本照明工業会 技術資料114-1996による）。 | FE72: ※10 年間交換作業費は40形を200円/本（税抜）、110形を800円/本（税抜）で試算しています（一般社団法人日本照明工業会 技術資料114-1996による）。 | FF72: ※10 年間交換作業費は40形を200円/本（税抜）、110形を800円/本（税抜）で試算しています（一般社団法人日本照明工業会 技術資料114-1996による）。 | FG72: ※10 年間交換作業費は40形を200円/本（税抜）、110形を800円/本（税抜）で試算しています（一般社団法人日本照明工業会 技術資料114-1996による）。 | FH72: ※10 年間交換作業費は40形を200円/本（税抜）、110形を800円/本（税抜）で試算しています（一般社団法人日本照明工業会 技術資料114-1996による）。 | FI72: ※10 年間交換作業費は40形を200円/本（税抜）、110形を800円/本（税抜）で試算しています（一般社団法人日本照明工業会 技術資料114-1996による）。 | FJ72: ※10 年間交換作業費は40形を200円/本（税抜）、110形を800円/本（税抜）で試算しています（一般社団法人日本照明工業会 技術資料114-1996による）。 | FK72: ※10 年間交換作業費は40形を200円/本（税抜）、110形を800円/本（税抜）で試算しています（一般社団法人日本照明工業会 技術資料114-1996による）。 | FL72: ※10 年間交換作業費は40形を200円/本（税抜）、110形を800円/本（税抜）で試算しています（一般社団法人日本照明工業会 技術資料114-1996による）。 | FM72: ※10 年間交換作業費は40形を200円/本（税抜）、110形を800円/本（税抜）で試算しています（一般社団法人日本照明工業会 技術資料114-1996による）。 | FN72: ※10 年間交換作業費は40形を200円/本（税抜）、110形を800円/本（税抜）で試算しています（一般社団法人日本照明工業会 技術資料114-1996による）。 | FO72: ※10 年間交換作業費は40形を200円/本（税抜）、110形を800円/本（税抜）で試算しています（一般社団法人日本照明工業会 技術資料114-1996による）。 | FP72: ※10 年間交換作業費は40形を200円/本（税抜）、110形を800円/本（税抜）で試算しています（一般社団法人日本照明工業会 技術資料114-1996による）。 | FQ72: ※10 年間交換作業費は40形を200円/本（税抜）、110形を800円/本（税抜）で試算しています（一般社団法人日本照明工業会 技術資料114-1996による）。 | FR72: ※10 年間交換作業費は40形を200円/本（税抜）、110形を800円/本（税抜）で試算しています（一般社団法人日本照明工業会 技術資料114-1996による）。 | FS72: ※10 年間交換作業費は40形を200円/本（税抜）、110形を800円/本（税抜）で試算しています（一般社団法人日本照明工業会 技術資料114-1996による）。 | FT72: ※10 年間交換作業費は40形を200円/本（税抜）、110形を800円/本（税抜）で試算しています（一般社団法人日本照明工業会 技術資料114-1996による）。 | FU72: ※10 年間交換作業費は40形を200円/本（税抜）、110形を800円/本（税抜）で試算しています（一般社団法人日本照明工業会 技術資料114-1996による）。 | FV72: ※10 年間交換作業費は40形を200円/本（税抜）、110形を800円/本（税抜）で試算しています（一般社団法人日本照明工業会 技術資料114-1996による）。 | FW72: ※10 年間交換作業費は40形を200円/本（税抜）、110形を800円/本（税抜）で試算しています（一般社団法人日本照明工業会 技術資料114-1996による）。 | FX72: ※10 年間交換作業費は40形を200円/本（税抜）、110形を800円/本（税抜）で試算しています（一般社団法人日本照明工業会 技術資料114-1996による）。 | FY72: ※10 年間交換作業費は40形を200円/本（税抜）、110形を800円/本（税抜）で試算しています（一般社団法人日本照明工業会 技術資料114-1996による）。 | FZ72: ※10 年間交換作業費は40形を200円/本（税抜）、110形を800円/本（税抜）で試算しています（一般社団法人日本照明工業会 技術資料114-1996による）。 | GA72: ※10 年間交換作業費は40形を200円/本（税抜）、110形を800円/本（税抜）で試算しています（一般社団法人日本照明工業会 技術資料114-1996による）。 | GB72: ※10 年間交換作業費は40形を200円/本（税抜）、110形を800円/本（税抜）で試算しています（一般社団法人日本照明工業会 技術資料114-1996による）。 | GC72: ※10 年間交換作業費は40形を200円/本（税抜）、110形を800円/本（税抜）で試算しています（一般社団法人日本照明工業会 技術資料114-1996による）。 | GD72: ※10 年間交換作業費は40形を200円/本（税抜）、110形を800円/本（税抜）で試算しています（一般社団法人日本照明工業会 技術資料114-1996による）。 | GE72: ※10 年間交換作業費は40形を200円/本（税抜）、110形を800円/本（税抜）で試算しています（一般社団法人日本照明工業会 技術資料114-1996による）。 | GF72: ※10 年間交換作業費は40形を200円/本（税抜）、110形を800円/本（税抜）で試算しています（一般社団法人日本照明工業会 技術資料114-1996による）。 | GG72: ※10 年間交換作業費は40形を200円/本（税抜）、110形を800円/本（税抜）で試算しています（一般社団法人日本照明工業会 技術資料114-1996による）。 | GH72: ※10 年間交換作業費は40形を200円/本（税抜）、110形を800円/本（税抜）で試算しています（一般社団法人日本照明工業会 技術資料114-1996による）。 | GI72: ※10 年間交換作業費は40形を200円/本（税抜）、110形を800円/本（税抜）で試算しています（一般社団法人日本照明工業会 技術資料114-1996による）。 | GJ72: ※10 年間交換作業費は40形を200円/本（税抜）、110形を800円/本（税抜）で試算しています（一般社団法人日本照明工業会 技術資料114-1996による）。 | GK72: ※10 年間交換作業費は40形を200円/本（税抜）、110形を800円/本（税抜）で試算しています（一般社団法人日本照明工業会 技術資料114-1996による）。 | GL72: ※10 年間交換作業費は40形を200円/本（税抜）、110形を800円/本（税抜）で試算しています（一般社団法人日本照明工業会 技術資料114-1996による）。 | GM72: ※10 年間交換作業費は40形を200円/本（税抜）、110形を800円/本（税抜）で試算しています（一般社団法人日本照明工業会 技術資料114-1996による）。 | GN72: ※10 年間交換作業費は40形を200円/本（税抜）、110形を800円/本（税抜）で試算しています（一般社団法人日本照明工業会 技術資料114-1996による）。 | GO72: ※10 年間交換作業費は40形を200円/本（税抜）、110形を800円/本（税抜）で試算しています（一般社団法人日本照明工業会 技術資料114-1996による）。 | GP72: ※10 年間交換作業費は40形を200円/本（税抜）、110形を800円/本（税抜）で試算しています（一般社団法人日本照明工業会 技術資料114-1996による）。 | GQ72: ※10 年間交換作業費は40形を200円/本（税抜）、110形を800円/本（税抜）で試算しています（一般社団法人日本照明工業会 技術資料114-1996による）。 | GR72: ※10 年間交換作業費は40形を200円/本（税抜）、110形を800円/本（税抜）で試算しています（一般社団法人日本照明工業会 技術資料114-1996による）。 | GS72: ※10 年間交換作業費は40形を200円/本（税抜）、110形を800円/本（税抜）で試算しています（一般社団法人日本照明工業会 技術資料114-1996による）。 | GT72: ※10 年間交換作業費は40形を200円/本（税抜）、110形を800円/本（税抜）で試算しています（一般社団法人日本照明工業会 技術資料114-1996による）。 | GU72: ※10 年間交換作業費は40形を200円/本（税抜）、110形を800円/本（税抜）で試算しています（一般社団法人日本照明工業会 技術資料114-1996による）。 | GV72: ※10 年間交換作業費は40形を200円/本（税抜）、110形を800円/本（税抜）で試算しています（一般社団法人日本照明工業会 技術資料114-1996による）。 | GW72: ※10 年間交換作業費は40形を200円/本（税抜）、110形を800円/本（税抜）で試算しています（一般社団法人日本照明工業会 技術資料114-1996による）。 | GX72: ※10 年間交換作業費は40形を200円/本（税抜）、110形を800円/本（税抜）で試算しています（一般社団法人日本照明工業会 技術資料114-1996による）。 | GY72: ※10 年間交換作業費は40形を200円/本（税抜）、110形を800円/本（税抜）で試算しています（一般社団法人日本照明工業会 技術資料114-1996による）。 | GZ72: ※10 年間交換作業費は40形を200円/本（税抜）、110形を800円/本（税抜）で試算しています（一般社団法人日本照明工業会 技術資料114-1996による）。 | HA72: ※10 年間交換作業費は40形を200円/本（税抜）、110形を800円/本（税抜）で試算しています（一般社団法人日本照明工業会 技術資料114-1996による）。 | HB72: ※10 年間交換作業費は40形を200円/本（税抜）、110形を800円/本（税抜）で試算しています（一般社団法人日本照明工業会 技術資料114-1996による）。 | HC72: ※10 年間交換作業費は40形を200円/本（税抜）、110形を800円/本（税抜）で試算しています（一般社団法人日本照明工業会 技術資料114-1996による）。 | HD72: ※10 年間交換作業費は40形を200円/本（税抜）、110形を800円/本（税抜）で試算しています（一般社団法人日本照明工業会 技術資料114-1996による）。 | HE72: ※10 年間交換作業費は40形を200円/本（税抜）、110形を800円/本（税抜）で試算しています（一般社団法人日本照明工業会 技術資料114-1996による）。 | HF72: ※10 年間交換作業費は40形を200円/本（税抜）、110形を800円/本（税抜）で試算しています（一般社団法人日本照明工業会 技術資料114-1996による）。 | HG72: ※10 年間交換作業費は40形を200円/本（税抜）、110形を800円/本（税抜）で試算しています（一般社団法人日本照明工業会 技術資料114-1996による）。 | HH72: ※10 年間交換作業費は40形を200円/本（税抜）、110形を800円/本（税抜）で試算しています（一般社団法人日本照明工業会 技術資料114-1996による）。 | HI72: ※10 年間交換作業費は40形を200円/本（税抜）、110形を800円/本（税抜）で試算しています（一般社団法人日本照明工業会 技術資料114-1996による）。 | HJ72: ※10 年間交換作業費は40形を200円/本（税抜）、110形を800円/本（税抜）で試算しています（一般社団法人日本照明工業会 技術資料114-1996による）。 | HK72: ※10 年間交換作業費は40形を200円/本（税抜）、110形を800円/本（税抜）で試算しています（一般社団法人日本照明工業会 技術資料114-1996による）。 | HL72: ※10 年間交換作業費は40形を200円/本（税抜）、110形を800円/本（税抜）で試算しています（一般社団法人日本照明工業会 技術資料114-1996による）。 | HM72: ※10 年間交換作業費は40形を200円/本（税抜）、110形を800円/本（税抜）で試算しています（一般社団法人日本照明工業会 技術資料114-1996による）。 | HN72: ※10 年間交換作業費は40形を200円/本（税抜）、110形を800円/本（税抜）で試算しています（一般社団法人日本照明工業会 技術資料114-1996による）。 | HO72: ※10 年間交換作業費は40形を200円/本（税抜）、110形を800円/本（税抜）で試算しています（一般社団法人日本照明工業会 技術資料114-1996による）。 | HP72: ※10 年間交換作業費は40形を200円/本（税抜）、110形を800円/本（税抜）で試算しています（一般社団法人日本照明工業会 技術資料114-1996による）。 | HQ72: ※10 年間交換作業費は40形を200円/本（税抜）、110形を800円/本（税抜）で試算しています（一般社団法人日本照明工業会 技術資料114-1996による）。 | HR72: ※10 年間交換作業費は40形を200円/本（税抜）、110形を800円/本（税抜）で試算しています（一般社団法人日本照明工業会 技術資料114-1996による）。 | HS72: ※10 年間交換作業費は40形を200円/本（税抜）、110形を800円/本（税抜）で試算しています（一般社団法人日本照明工業会 技術資料114-1996による）。 | HT72: ※10 年間交換作業費は40形を200円/本（税抜）、110形を800円/本（税抜）で試算しています（一般社団法人日本照明工業会 技術資料114-1996による）。 | HU72: ※10 年間交換作業費は40形を200円/本（税抜）、110形を800円/本（税抜）で試算しています（一般社団法人日本照明工業会 技術資料114-1996による）。 | HV72: ※10 年間交換作業費は40形を200円/本（税抜）、110形を800円/本（税抜）で試算しています（一般社団法人日本照明工業会 技術資料114-1996による）。 | HW72: ※10 年間交換作業費は40形を200円/本（税抜）、110形を800円/本（税抜）で試算しています（一般社団法人日本照明工業会 技術資料114-1996による）。 | HX72: ※10 年間交換作業費は40形を200円/本（税抜）、110形を800円/本（税抜）で試算しています（一般社団法人日本照明工業会 技術資料114-1996による）。 | HY72: ※10 年間交換作業費は40形を200円/本（税抜）、110形を800円/本（税抜）で試算しています（一般社団法人日本照明工業会 技術資料114-1996による）。 | HZ72: ※10 年間交換作業費は40形を200円/本（税抜）、110形を800円/本（税抜）で試算しています（一般社団法人日本照明工業会 技術資料114-1996による）。 | IA72: ※10 年間交換作業費は40形を200円/本（税抜）、110形を800円/本（税抜）で試算しています（一般社団法人日本照明工業会 技術資料114-1996による）。 | IB72: ※10 年間交換作業費は40形を200円/本（税抜）、110形を800円/本（税抜）で試算しています（一般社団法人日本照明工業会 技術資料114-1996による）。 | IC72: ※10 年間交換作業費は40形を200円/本（税抜）、110形を800円/本（税抜）で試算しています（一般社団法人日本照明工業会 技術資料114-1996による）。 | ID72: ※10 年間交換作業費は40形を200円/本（税抜）、110形を800円/本（税抜）で試算しています（一般社団法人日本照明工業会 技術資料114-1996による）。 | IE72: ※10 年間交換作業費は40形を200円/本（税抜）、110形を800円/本（税抜）で試算しています（一般社団法人日本照明工業会 技術資料114-1996による）。 | IF72: ※10 年間交換作業費は40形を200円/本（税抜）、110形を800円/本（税抜）で試算しています（一般社団法人日本照明工業会 技術資料114-1996による）。 | IG72: ※10 年間交換作業費は40形を200円/本（税抜）、110形を800円/本（税抜）で試算しています（一般社団法人日本照明工業会 技術資料114-1996による）。 | IH72: ※10 年間交換作業費は40形を200円/本（税抜）、110形を800円/本（税抜）で試算しています（一般社団法人日本照明工業会 技術資料114-1996による）。 | II72: ※10 年間交換作業費は40形を200円/本（税抜）、110形を800円/本（税抜）で試算しています（一般社団法人日本照明工業会 技術資料114-1996による）。 | IJ72: ※10 年間交換作業費は40形を200円/本（税抜）、110形を800円/本（税抜）で試算しています（一般社団法人日本照明工業会 技術資料114-1996による）。 | IK72: ※10 年間交換作業費は40形を200円/本（税抜）、110形を800円/本（税抜）で試算しています（一般社団法人日本照明工業会 技術資料114-1996による）。 | IL72: ※10 年間交換作業費は40形を200円/本（税抜）、110形を800円/本（税抜）で試算しています（一般社団法人日本照明工業会 技術資料114-1996による）。 | IM72: ※10 年間交換作業費は40形を200円/本（税抜）、110形を800円/本（税抜）で試算しています（一般社団法人日本照明工業会 技術資料114-1996による）。 | IN72: ※10 年間交換作業費は40形を200円/本（税抜）、110形を800円/本（税抜）で試算しています（一般社団法人日本照明工業会 技術資料114-1996による）。 | IO72: ※10 年間交換作業費は40形を200円/本（税抜）、110形を800円/本（税抜）で試算しています（一般社団法人日本照明工業会 技術資料114-1996による）。 | IP72: ※10 年間交換作業費は40形を200円/本（税抜）、110形を800円/本（税抜）で試算しています（一般社団法人日本照明工業会 技術資料114-1996による）。 | IQ72: ※10 年間交換作業費は40形を200円/本（税抜）、110形を800円/本（税抜）で試算しています（一般社団法人日本照明工業会 技術資料114-1996による）。 | IR72: ※10 年間交換作業費は40形を200円/本（税抜）、110形を800円/本（税抜）で試算しています（一般社団法人日本照明工業会 技術資料114-1996による）。 | IS72: ※10 年間交換作業費は40形を200円/本（税抜）、110形を800円/本（税抜）で試算しています（一般社団法人日本照明工業会 技術資料114-1996による）。 | IT72: ※10 年間交換作業費は40形を200円/本（税抜）、110形を800円/本（税抜）で試算しています（一般社団法人日本照明工業会 技術資料114-1996による）。 | IU72: ※10 年間交換作業費は40形を200円/本（税抜）、110形を800円/本（税抜）で試算しています（一般社団法人日本照明工業会 技術資料114-1996による）。 | IV72: ※10 年間交換作業費は40形を200円/本（税抜）、110形を800円/本（税抜）で試算しています（一般社団法人日本照明工業会 技術資料114-1996による）。
L74: 2023年 4月版
C75: =VLOOKUP(品名,DATA!$A$4:$AM$7,3,0) -> KUHAKU | I75: =VLOOKUP(品名,DATA!$A$4:$AM$7,25,0) -> KUHAKULED

Sheet DATA (hidden)
A1: 【DATA】
A2: 従来器具 | W2: 提案ＬＥＤ器具
A3: 従来品名 | B3: 表示形式 | C3: 従来形式 | D3: 従来画像 | E3: 表示器具 | F3: 表示ランプ | G3: 表示安定器 | H3: 従来器具 | I3: 従来ランプ | J3: 従来安定器 | K3: 合計価格 | L3: 従来電力 | M3: 定格寿命 | N3: ランプ光束 | O3: 消費効率 | P3: 質量合計 | Q3: ランプ | R3: 点灯装置 | S3: 質量表示 | T3: 照度補正の場合 | U3: 交換費@ | W3: 提案ＬＥＤ | X3: 提案表示形式 | Y3: 提案形式 | Z3: 提案画像 | AA3: 器具 | AB3: 点灯装置 | AC3: 合計価格 | AD3: 消費電力 | AE3: 平均電力 | AF3: 定格寿命 | AG3: 定格光束 | AH3: 消費効率 | AI3: 質量合計 | AJ3: ランプ | AK3: 点灯装置 | AL3: 質量表示 | AM3: 照度補正の場合
A4: ▼ | C4: KUHAKU | Y4: KUHAKULED
A5: 水銀ランプ250W + 安定器 | B5: HF250X + 2.5MHC25/26 | C5: HF250X | F5: HF250X | G5: 2.5MHC25/26 | H5: =Q10+Q12 -> 8500 | I5: =Q17 -> 4600 | J5: =Q13 -> 15400 | K5: =SUM(H5:J5) -> 28500 | L5: 260 | M5: 12000 | N5: 12800 | O5: =N5/L5 -> 49.23076923 | P5: =SUM(Q5:R5) -> 3.3 | Q5: 0.2 | R5: 3.1 | S5: ﾗﾝﾌﾟ：0.2kg、安定器：3.1kg、合計：3.3kg | U5: 1100 | W5: 水銀ﾗﾝﾌﾟ250ｸﾗｽ 高天井用LED器具（広角） + 点灯装置 | X5: BME11BMNC1 + BK10CLN14C | Y5: BME1101MN | AA5: 53400 | AB5: 23100 | AC5: =SUM(AA5:AB5) -> 76500 | AD5: 66.2 | AF5: 60000 | AG5: 11500 | AH5: =ROUNDDOWN(AG5/AD5,1) -> 173.7 | AI5: =SUM(AJ5:AK5) -> 2.7 | AJ5: 1.3 | AK5: 1.4 | AL5: LED器具：1.3kg、点灯装置：1.4kg、合計：2.7kg
A6: 水銀ランプ400W + 安定器 | B6: HF400X + 4MHC25/26 | C6: HF400X | F6: HF400X | G6: 4MHC25/26 | H6: =Q10+Q12 -> 8500 | I6: =Q18 -> 5850 | J6: =Q14 -> 20600 | K6: =SUM(H6:J6) -> 34950 | L6: 415 | M6: 12000 | N6: 22000 | O6: =N6/L6 -> 53.01204819 | P6: =SUM(Q6:R6) -> 4.27 | Q6: 0.27 | R6: 4 | S6: ﾗﾝﾌﾟ：0.27kg、安定器：4.0kg、合計：4.27kg | U6: 1100 | W6: 水銀ﾗﾝﾌﾟ400ｸﾗｽ 高天井用LED器具（広角） + 点灯装置 | X6: BME16CMNC1 + BK14CLN14C | Y6: BME1601MN | AA6: 80600 | AB6: 33400 | AC6: =SUM(AA6:AB6) -> 114000 | AD6: 99 | AF6: 60000 | AG6: 17400 | AH6: =ROUNDDOWN(AG6/AD6,1) -> 175.7 | AI6: =SUM(AJ6:AK6) -> 2.7 | AJ6: 1.3 | AK6: 1.4 | AL6: LEDﾗﾝﾌﾟ：1.3kg、点灯装置：1.4kg、合計：2.7kg
A7: ﾒﾀﾙﾊﾗｲﾄﾞﾗﾝﾌﾟ400W + 安定器 | B7: MF400L-B/BU-P + 4MHC25/26 | C7: MF400LB | F7: MF400L-B/BU-P | G7: 4MHC25/26 | H7: =Q10+Q12 -> 8500 | I7: =Q21 -> 13300 | J7: =Q14 -> 20600 | K7: 42400 | L7: 415 | M7: 12000 | N7: 42000 | O7: =N7/L7 -> 101.2048193 | P7: =SUM(Q7:R7) -> 4.27 | Q7: 0.27 | R7: 4 | S7: ﾗﾝﾌﾟ：0.27kg、安定器：4.0kg、合計：4.27kg | U7: 1100 | W7: ﾒﾀﾙﾊﾗｲﾄﾞﾗﾝﾌﾟ400ｸﾗｽ 高天井用LED器具（広角） + 点灯装置 | X7: BME21CMNC1+ BK19CLN14C | Y7: BME2101MN | AA7: 104500 | AB7: 37100 | AC7: =SUM(AA7:AB7) -> 141600 | AD7: 128 | AF7: 60000 | AG7: 22000 | AH7: 171.8 | AI7: =SUM(AJ7:AK7) -> 2.7 | AJ7: 1.3 | AK7: 1.4 | AL7: LEDﾗﾝﾌﾟ：1.3kg、点灯装置：1.4kg、合計：3.3kg
D9: 更新履歴 | P9: ＜質量＞ | Q9: ＜価格＞
D10: ■2018.5.31 従来器具の販売終了に伴い、経済比較から従来器具の価格を除外。 | O10: MK4011 | P10: 0.46 | Q10: 4800
D11: ■2019.12.17 MC品にデータ更新（露出BOX用アダプタ別売、ランプ口出し線長さ変更） | O11: MK10011 | P11: 0.82 | Q11: 9700
O12: MSN406 | P12: 0.7 | Q12: 3700
O13: 2.5MHC25 | P13: 3.1 | Q13: 15400
O14: 4MHC25 | P14: 4 | Q14: 20600
O15: 7MHC25 | P15: 7.1 | Q15: 32400
O16: 10MHC25 | P16: 8.9 | Q16: 39500
O17: HF250X | P17: 0.2 | Q17: 4600
O18: HF400X | P18: 0.27 | Q18: 5850
O19: HF700X | P19: 0.44 | Q19: 10300
O20: HF1000X | P20: 0.56 | Q20: 14400
O21: MF400L-B | P21: 0.27 | Q21: 13300
O22: MF1000L-C | P22: 0.59 | Q22: 28600

Sheet ｸﾞﾗﾌ (hidden)
A3: 使用年数 | B3: 0 | C3: 1 | D3: 2 | E3: 3 | F3: 4 | G3: 5 | H3: 6 | I3: 7 | J3: 8 | K3: 9 | L3: 10 | M3: 11 | N3: 12 | O3: 13 | P3: 14 | Q3: 15
A4: 従来 | B4: =IF('高天井用LED器具(ｱｰﾑﾀｲﾌﾟ)'!C41="",0,'高天井用LED器具(ｱｰﾑﾀｲﾌﾟ)'!C41/10000) -> 0 | C4: =IF('高天井用LED器具(ｱｰﾑﾀｲﾌﾟ)'!$C39="","",B4+'高天井用LED器具(ｱｰﾑﾀｲﾌﾟ)'!$C39/10000) -> 0 | D4: =IF('高天井用LED器具(ｱｰﾑﾀｲﾌﾟ)'!$C39="","",C4+'高天井用LED器具(ｱｰﾑﾀｲﾌﾟ)'!$C39/10000) -> 0 | E4: =IF('高天井用LED器具(ｱｰﾑﾀｲﾌﾟ)'!$C39="","",D4+'高天井用LED器具(ｱｰﾑﾀｲﾌﾟ)'!$C39/10000) -> 0 | F4: =IF('高天井用LED器具(ｱｰﾑﾀｲﾌﾟ)'!$C39="","",E4+'高天井用LED器具(ｱｰﾑﾀｲﾌﾟ)'!$C39/10000) -> 0 | G4: =IF('高天井用LED器具(ｱｰﾑﾀｲﾌﾟ)'!$C39="","",F4+'高天井用LED器具(ｱｰﾑﾀｲﾌﾟ)'!$C39/10000) -> 0 | H4: =IF('高天井用LED器具(ｱｰﾑﾀｲﾌﾟ)'!$C39="","",G4+'高天井用LED器具(ｱｰﾑﾀｲﾌﾟ)'!$C39/10000) -> 0 | I4: =IF('高天井用LED器具(ｱｰﾑﾀｲﾌﾟ)'!$C39="","",H4+'高天井用LED器具(ｱｰﾑﾀｲﾌﾟ)'!$C39/10000) -> 0 | J4: =IF('高天井用LED器具(ｱｰﾑﾀｲﾌﾟ)'!$C39="","",I4+'高天井用LED器具(ｱｰﾑﾀｲﾌﾟ)'!$C39/10000) -> 0 | K4: =IF('高天井用LED器具(ｱｰﾑﾀｲﾌﾟ)'!$C39="","",J4+'高天井用LED器具(ｱｰﾑﾀｲﾌﾟ)'!$C39/10000) -> 0 | L4: =IF('高天井用LED器具(ｱｰﾑﾀｲﾌﾟ)'!$C39="","",K4+'高天井用LED器具(ｱｰﾑﾀｲﾌﾟ)'!$C39/10000) -> 0 | M4: =IF('高天井用LED器具(ｱｰﾑﾀｲﾌﾟ)'!$C39="","",L4+'高天井用LED器具(ｱｰﾑﾀｲﾌﾟ)'!$C39/10000) -> 0 | N4: =IF('高天井用LED器具(ｱｰﾑﾀｲﾌﾟ)'!$C39="","",M4+'高天井用LED器具(ｱｰﾑﾀｲﾌﾟ)'!$C39/10000) -> 0 | O4: =IF('高天井用LED器具(ｱｰﾑﾀｲﾌﾟ)'!$C39="","",N4+'高天井用LED器具(ｱｰﾑﾀｲﾌﾟ)'!$C39/10000) -> 0 | P4: =IF('高天井用LED器具(ｱｰﾑﾀｲﾌﾟ)'!$C39="","",O4+'高天井用LED器具(ｱｰﾑﾀｲﾌﾟ)'!$C39/10000) -> 0 | Q4: =IF('高天井用LED器具(ｱｰﾑﾀｲﾌﾟ)'!$C39="","",P4+'高天井用LED器具(ｱｰﾑﾀｲﾌﾟ)'!$C39/10000) -> 0
A5: LED | B5: =IF('高天井用LED器具(ｱｰﾑﾀｲﾌﾟ)'!I41="","",'高天井用LED器具(ｱｰﾑﾀｲﾌﾟ)'!I41/10000) -> 0 | C5: =IF('高天井用LED器具(ｱｰﾑﾀｲﾌﾟ)'!$I39="","",B5+'高天井用LED器具(ｱｰﾑﾀｲﾌﾟ)'!$I39/10000) -> 0 | D5: =IF('高天井用LED器具(ｱｰﾑﾀｲﾌﾟ)'!$I39="","",C5+'高天井用LED器具(ｱｰﾑﾀｲﾌﾟ)'!$I39/10000) -> 0 | E5: =IF('高天井用LED器具(ｱｰﾑﾀｲﾌﾟ)'!$I39="","",D5+'高天井用LED器具(ｱｰﾑﾀｲﾌﾟ)'!$I39/10000) -> 0 | F5: =IF('高天井用LED器具(ｱｰﾑﾀｲﾌﾟ)'!$I39="","",E5+'高天井用LED器具(ｱｰﾑﾀｲﾌﾟ)'!$I39/10000) -> 0 | G5: =IF('高天井用LED器具(ｱｰﾑﾀｲﾌﾟ)'!$I39="","",F5+'高天井用LED器具(ｱｰﾑﾀｲﾌﾟ)'!$I39/10000) -> 0 | H5: =IF('高天井用LED器具(ｱｰﾑﾀｲﾌﾟ)'!$I39="","",G5+'高天井用LED器具(ｱｰﾑﾀｲﾌﾟ)'!$I39/10000) -> 0 | I5: =IF('高天井用LED器具(ｱｰﾑﾀｲﾌﾟ)'!$I39="","",H5+'高天井用LED器具(ｱｰﾑﾀｲﾌﾟ)'!$I39/10000) -> 0 | J5: =IF('高天井用LED器具(ｱｰﾑﾀｲﾌﾟ)'!$I39="","",I5+'高天井用LED器具(ｱｰﾑﾀｲﾌﾟ)'!$I39/10000) -> 0 | K5: =IF('高天井用LED器具(ｱｰﾑﾀｲﾌﾟ)'!$I39="","",J5+'高天井用LED器具(ｱｰﾑﾀｲﾌﾟ)'!$I39/10000) -> 0 | L5: =IF('高天井用LED器具(ｱｰﾑﾀｲﾌﾟ)'!$I39="","",K5+'高天井用LED器具(ｱｰﾑﾀｲﾌﾟ)'!$I39/10000) -> 0 | M5: =IF('高天井用LED器具(ｱｰﾑﾀｲﾌﾟ)'!$I39="","",L5+'高天井用LED器具(ｱｰﾑﾀｲﾌﾟ)'!$I39/10000) -> 0 | N5: =IF('高天井用LED器具(ｱｰﾑﾀｲﾌﾟ)'!$I39="","",M5+'高天井用LED器具(ｱｰﾑﾀｲﾌﾟ)'!$I39/10000) -> 0 | O5: =IF('高天井用LED器具(ｱｰﾑﾀｲﾌﾟ)'!$I39="","",N5+'高天井用LED器具(ｱｰﾑﾀｲﾌﾟ)'!$I39/10000) -> 0 | P5: =IF('高天井用LED器具(ｱｰﾑﾀｲﾌﾟ)'!$I39="","",O5+'高天井用LED器具(ｱｰﾑﾀｲﾌﾟ)'!$I39/10000) -> 0 | Q5: =IF('高天井用LED器具(ｱｰﾑﾀｲﾌﾟ)'!$I39="","",P5+'高天井用LED器具(ｱｰﾑﾀｲﾌﾟ)'!$I39/10000) -> 0
